Workbook

Sheet Vista Principal
B8: Ingresar los datos del préstamo:
B9: Producto | C9: Préstamos Vehiculares (Clientes)
B10: Tipo de Seguro | C10: Seguro de Vida
B11: Tarifa | C11: TARIFA TITULAR
B13: Valor del Vehiculo | C13: 108,103.71
B14: Valor de Cuota Inicial | C14: 37,290.00 | D14: =C14/C13 -> 34%
B15: Monto inicial | C15: =C13-C14 -> 70,813.71
B16: Seguro Desempleo | C16: 0.000%
B17: Monto adicional desempleo | C17: =C16*C15 -> 0
B19: Prima de Seguro de Desgravamen/Vida | C19: =IF(C10="Seguro de vida",'Proceso Prima de Seguro'!D13,'Proceso Prima de Seguro'!H16) -> 3.1400% | D19: Más Detalle
B20: Monto adicional del Seguro | C20: =+C19*C15 -> 2,223.55
B21: MAF Inicial | C21: =C15+C17+C20 -> 73,037.26
B23: Empleado | C23: =IF(OR(C9="Préstamos Personales (LD Y PA) (Empleados)",C9 = "Préstamos Vehiculares (Empleados)"),"SI","NO") -> NO
B24: Moneda | C24: Soles
B25: Plazo (meses) | C25: 60
B27: Fecha de Desembolso | C27: =TODAY() -> 2024-08-15
B28: Fecha de 1er Pago | C28: 2024-11-30
B29: Cuota Julio | C29: 2
B30: Cuota Diciembre | C30: 2
B31: TEA (De acuerdo al tarifario) | C31: 10.000%
B32: TEA TOTAL | C32: =+C31 -> 10.000%
B33: Monto del Bien | C33: =C13 -> 108,103.71
B34: Tipo Seguro Vehicular | C34: PC - Auto/4x4 con GPS Prov/Valor >50k
B35: Tasa Seguro Vehicular (Mensual) | C35: =VLOOKUP('Vista Principal'!C34,TarifarioBD!N:O,2,0) -> 0.3444% | D35: Más Detalle
B36: Portes | C36: 0 | P36: 48
B37: Cuota | C37: =(C21+(C35*C33+C36)*P46)/O46 -> 1,664.49
B38: No te olvides presionar el botón para calcular la TCEA:
B39: TCEA | C39: 33.56%
U40: =C21-U46-C17-C20 -> 13,751.90
B41: Importante: - Las datos del simulador son referenciales. - El otorgamiendo del préstamo esta sujeto a calificación. - La fecha de desembolso, es la fecha de solicitud que ha ingresado en este simulador.
O46: =SUM(O48:O407) -> 54.27 | P46: =SUM(P48:P407) -> 46.47 | U46: =SUM(U48:U407) -> 57,061.81
B47: N° Cuota | C47: Fecha de pago | D47: Día | E47: Fecha de pago | F47: Días | G47: Dias Acumulados | H47: Saldo Inicial | I47: Amortización | J47: Interés | K47: Seguro del Bien | L47: Portes | M47: Cuota Constante | N47: Saldo Final | O47: Factor Cronograma | P47: Factor Cronograma 2 | R47: Vector i,1 Cuota | S47: Vector i,2 Días Acum | T47: Vector i,3 Factor | U47: Vector i,4 Calculo VA
B48: 1 | C48: =C28 -> 2024-11-30 | D48: =IF(B48<=$C$25,WEEKDAY(C48,2),"") -> 6 | E48: =IF(D48=7,C48+1,C48) -> 2024-11-30 | F48: =E48-C27 -> 107 | G48: =F48 -> 107 | H48: =C21 -> 73,037.26 | I48: =IF(B48>C$25,"",M48-L48-K48-J48) -> -806.42 | J48: =IF(B48>C$25,"",((1+C$31)^(F48/360)-1)*H48) -> 2,098.61 | K48: =IF(B48>C$25,"",C$33*C$35) -> 372.31 | L48: =IF(B48>C$25,"",C$36) -> 0 | M48: =IF(B48>C$25,"",IF(B48=C$25,H48+J48+K48+L48,IF(AND(C$29=2,MONTH(E48)=7),2*C$37,IF(AND(C$30=2,MONTH(E48)=12),2*C$37,C$37)))) -> 1,664.49 | N48: =IF(B48>C$25,"",H48-I48) -> 73,843.68 | O48: =IFERROR(IF(AND(MONTH(E48)=7,C$29=2),2/(1+C$32)^(G48/360),IF(AND(MONTH(E48)=12,C$30=2),2/(1+C$32)^(G48/360),1/(1+C$32)^(G48/360))),"") -> 0.97 | P48: =IFERROR(1/(1+C$32)^(G48/360),"") -> 0.97 | R48: =IFERROR(I48+J48+K48+L48,"") -> 1,664.49 | S48: =G48 -> 107 | T48: =IFERROR((1+C$39)^(S48/360),"") -> 1.09 | U48: =IFERROR(ROUND(R48/T48,2),"") -> 1,527.33
B49: 2 | C49: =IF(B49>$C$25,"",EDATE(C48,1)) -> 2024-12-30 | D49: 1 | E49: =IF(D49=7,C49+1,C49) -> 2024-12-30 | F49: =IF(B49>C$25,"",E49-E48) -> 30 | G49: =IFERROR(F49+G48,"") -> 137 | H49: =IF(B49>C$25,"",N48) -> 73,843.68 | I49: =IF(B49>C$25,"",M49-L49-K49-J49) -> 2,367.84 | J49: 588.84 | K49: 372.31 | L49: 0 | M49: 3,328.99 | N49: 71,475.84 | O49: 1.93 | P49: 0.96 | R49: =IFERROR(I49+J49+K49+L49,"") -> 3,328.99 | S49: 137 | T49: 1.12 | U49: 2,981.89
B50: 3 | C50: 2025-01-30 | D50: 4 | E50: 2025-01-30 | F50: 31 | G50: 168 | H50: 71,475.84 | I50: 703.15 | J50: 589.04 | K50: 372.31 | L50: 0 | M50: 1,664.49 | N50: 70,772.70 | O50: 0.96 | P50: 0.96 | R50: 1,664.49 | S50: 168 | T50: 1.14 | U50: 1,454.25
B51: 4 | C51: 2025-02-28 | D51: 5 | E51: 2025-02-28 | F51: 29 | G51: 197 | H51: 70,772.70 | I51: 746.72 | J51: 545.47 | K51: 372.31 | L51: 0 | M51: 1,664.49 | N51: 70,025.98 | O51: 0.95 | P51: 0.95 | R51: 1,664.49 | S51: 197 | T51: 1.17 | U51: 1,420.75
B52: 5 | C52: 2025-03-28 | D52: 5 | E52: 2025-03-28 | F52: 28 | G52: 225 | H52: 70,025.98 | I52: 771.15 | J52: 521.03 | K52: 372.31 | L52: 0 | M52: 1,664.49 | N52: 69,254.83 | O52: 0.94 | P52: 0.94 | R52: 1,664.49 | S52: 225 | T52: 1.20 | U52: 1,389.13
B53: 6 | C53: 2025-04-28 | D53: 1 | E53: 2025-04-28 | F53: 31 | G53: 256 | H53: 69,254.83 | I53: 721.45 | J53: 570.73 | K53: 372.31 | L53: 0 | M53: 1,664.49 | N53: 68,533.37 | O53: 0.93 | P53: 0.93 | R53: 1,664.49 | S53: 256 | T53: 1.23 | U53: 1,354.95
B54: 7 | C54: 2025-05-28 | D54: 3 | E54: 2025-05-28 | F54: 30 | G54: 286 | H54: 68,533.37 | I54: 745.69 | J54: 546.49 | K54: 372.31 | L54: 0 | M54: 1,664.49 | N54: 67,787.68 | O54: 0.93 | P54: 0.93 | R54: 1,664.49 | S54: 286 | T54: 1.26 | U54: 1,322.67
B55: 8 | C55: 2025-06-28 | D55: 6 | E55: 2025-06-28 | F55: 31 | G55: 317 | H55: 67,787.68 | I55: 733.54 | J55: 558.64 | K55: 372.31 | L55: 0 | M55: 1,664.49 | N55: 67,054.14 | O55: 0.92 | P55: 0.92 | R55: 1,664.49 | S55: 317 | T55: 1.29 | U55: 1,290.12
B56: 9 | C56: 2025-07-28 | D56: 1 | E56: 2025-07-28 | F56: 30 | G56: 347 | H56: 67,054.14 | I56: 2,421.98 | J56: 534.70 | K56: 372.31 | L56: 0 | M56: 3,328.99 | N56: 64,632.16 | O56: 1.82 | P56: 0.91 | R56: 3,328.99 | S56: 347 | T56: 1.32 | U56: 2,518.77
B57: 10 | C57: 2025-08-28 | D57: 4 | E57: 2025-08-28 | F57: 31 | G57: 378 | H57: 64,632.16 | I57: 759.55 | J57: 532.64 | K57: 372.31 | L57: 0 | M57: 1,664.49 | N57: 63,872.61 | O57: 0.90 | P57: 0.90 | R57: 1,664.49 | S57: 378 | T57: 1.36 | U57: 1,228.40
B58: 11 | C58: 2025-09-28 | D58: 7 | E58: 2025-09-29 | F58: 32 | G58: 410 | H58: 63,872.61 | I58: 748.76 | J58: 543.43 | K58: 372.31 | L58: 0 | M58: 1,664.49 | N58: 63,123.86 | O58: 0.90 | P58: 0.90 | R58: 1,664.49 | S58: 410 | T58: 1.39 | U58: 1,197.20
B59: 12 | C59: 2025-10-28 | D59: 2 | E59: 2025-10-28 | F59: 29 | G59: 439 | H59: 63,123.86 | I59: 805.67 | J59: 486.52 | K59: 372.31 | L59: 0 | M59: 1,664.49 | N59: 62,318.19 | O59: 0.89 | P59: 0.89 | R59: 1,664.49 | S59: 439 | T59: 1.42 | U59: 1,169.62
B60: 13 | C60: 2025-11-28 | D60: 5 | E60: 2025-11-28 | F60: 31 | G60: 470 | H60: 62,318.19 | I60: 778.62 | J60: 513.57 | K60: 372.31 | L60: 0 | M60: 1,664.49 | N60: 61,539.57 | O60: 0.88 | P60: 0.88 | R60: 1,664.49 | S60: 470 | T60: 1.46 | U60: 1,140.84
B61: 14 | C61: 2025-12-28 | D61: 7 | E61: 2025-12-29 | F61: 31 | G61: 501 | H61: 61,539.57 | I61: 2,449.53 | J61: 507.15 | K61: 372.31 | L61: 0 | M61: 3,328.99 | N61: 59,090.04 | O61: 1.75 | P61: 0.88 | R61: 3,328.99 | S61: 501 | T61: 1.50 | U61: 2,225.53
B62: 15 | C62: 2026-01-28 | D62: 3 | E62: 2026-01-28 | F62: 30 | G62: 531 | H62: 59,090.04 | I62: 820.99 | J62: 471.19 | K62: 372.31 | L62: 0 | M62: 1,664.49 | N62: 58,269.05 | O62: 0.87 | P62: 0.87 | R62: 1,664.49 | S62: 531 | T62: 1.53 | U62: 1,086.26
B63: 16 | C63: 2026-02-28 | D63: 6 | E63: 2026-02-28 | F63: 31 | G63: 562 | H63: 58,269.05 | I63: 811.99 | J63: 480.20 | K63: 372.31 | L63: 0 | M63: 1,664.49 | N63: 57,457.07 | O63: 0.86 | P63: 0.86 | R63: 1,664.49 | S63: 562 | T63: 1.57 | U63: 1,059.53
B64: 17 | C64: 2026-03-28 | D64: 6 | E64: 2026-03-28 | F64: 28 | G64: 590 | H64: 57,457.07 | I64: 864.67 | J64: 427.51 | K64: 372.31 | L64: 0 | M64: 1,664.49 | N64: 56,592.39 | O64: 0.86 | P64: 0.86 | R64: 1,664.49 | S64: 590 | T64: 1.61 | U64: 1,035.95
B65: 18 | C65: 2026-04-28 | D65: 2 | E65: 2026-04-28 | F65: 31 | G65: 621 | H65: 56,592.39 | I65: 825.80 | J65: 466.38 | K65: 372.31 | L65: 0 | M65: 1,664.49 | N65: 55,766.59 | O65: 0.85 | P65: 0.85 | R65: 1,664.49 | S65: 621 | T65: 1.65 | U65: 1,010.46
B66: 19 | C66: 2026-05-28 | D66: 4 | E66: 2026-05-28 | F66: 30 | G66: 651 | H66: 55,766.59 | I66: 847.49 | J66: 444.69 | K66: 372.31 | L66: 0 | M66: 1,664.49 | N66: 54,919.10 | O66: 0.84 | P66: 0.84 | R66: 1,664.49 | S66: 651 | T66: 1.69 | U66: 986.38
B67: 20 | C67: 2026-06-28 | D67: 7 | E67: 2026-06-29 | F67: 32 | G67: 683 | H67: 54,919.10 | I67: 824.93 | J67: 467.25 | K67: 372.31 | L67: 0 | M67: 1,664.49 | N67: 54,094.16 | O67: 0.83 | P67: 0.83 | R67: 1,664.49 | S67: 683 | T67: 1.73 | U67: 961.34
B68: 21 | C68: 2026-07-28 | D68: 2 | E68: 2026-07-28 | F68: 29 | G68: 712 | H68: 54,094.16 | I68: 2,539.76 | J68: 416.92 | K68: 372.31 | L68: 0 | M68: 3,328.99 | N68: 51,554.41 | O68: 1.66 | P68: 0.83 | R68: 3,328.99 | S68: 712 | T68: 1.77 | U68: 1,878.38
B69: 22 | C69: 2026-08-28 | D69: 5 | E69: 2026-08-28 | F69: 31 | G69: 743 | H69: 51,554.41 | I69: 867.32 | J69: 424.86 | K69: 372.31 | L69: 0 | M69: 1,664.49 | N69: 50,687.08 | O69: 0.82 | P69: 0.82 | R69: 1,664.49 | S69: 743 | T69: 1.82 | U69: 916.08
B70: 23 | C70: 2026-09-28 | D70: 1 | E70: 2026-09-28 | F70: 31 | G70: 774 | H70: 50,687.08 | I70: 874.47 | J70: 417.71 | K70: 372.31 | L70: 0 | M70: 1,664.49 | N70: 49,812.61 | O70: 0.81 | P70: 0.81 | R70: 1,664.49 | S70: 774 | T70: 1.86 | U70: 893.53
B71: 24 | C71: 2026-10-28 | D71: 3 | E71: 2026-10-28 | F71: 30 | G71: 804 | H71: 49,812.61 | I71: 894.97 | J71: 397.21 | K71: 372.31 | L71: 0 | M71: 1,664.49 | N71: 48,917.64 | O71: 0.81 | P71: 0.81 | R71: 1,664.49 | S71: 804 | T71: 1.91 | U71: 872.25
B72: 25 | C72: 2026-11-28 | D72: 6 | E72: 2026-11-28 | F72: 31 | G72: 835 | H72: 48,917.64 | I72: 889.05 | J72: 403.13 | K72: 372.31 | L72: 0 | M72: 1,664.49 | N72: 48,028.59 | O72: 0.80 | P72: 0.80 | R72: 1,664.49 | S72: 835 | T72: 1.96 | U72: 850.78
B73: 26 | C73: 2026-12-28 | D73: 1 | E73: 2026-12-28 | F73: 30 | G73: 865 | H73: 48,028.59 | I73: 2,573.69 | J73: 382.99 | K73: 372.31 | L73: 0 | M73: 3,328.99 | N73: 45,454.90 | O73: 1.59 | P73: 0.80 | R73: 3,328.99 | S73: 865 | T73: 2.00 | U73: 1,661.03
B74: 27 | C74: 2027-01-28 | D74: 4 | E74: 2027-01-28 | F74: 31 | G74: 896 | H74: 45,454.90 | I74: 917.59 | J74: 374.60 | K74: 372.31 | L74: 0 | M74: 1,664.49 | N74: 44,537.31 | O74: 0.79 | P74: 0.79 | R74: 1,664.49 | S74: 896 | T74: 2.05 | U74: 810.08
B75: 28 | C75: 2027-02-28 | D75: 7 | E75: 2027-03-01 | F75: 32 | G75: 928 | H75: 44,537.31 | I75: 913.26 | J75: 378.92 | K75: 372.31 | L75: 0 | M75: 1,664.49 | N75: 43,624.05 | O75: 0.78 | P75: 0.78 | R75: 1,664.49 | S75: 928 | T75: 2.11 | U75: 789.51
B76: 29 | C76: 2027-03-28 | D76: 7 | E76: 2027-03-29 | F76: 28 | G76: 956 | H76: 43,624.05 | I76: 967.60 | J76: 324.59 | K76: 372.31 | L76: 0 | M76: 1,664.49 | N76: 42,656.45 | O76: 0.78 | P76: 0.78 | R76: 1,664.49 | S76: 956 | T76: 2.16 | U76: 771.94
B77: 30 | C77: 2027-04-28 | D77: 3 | E77: 2027-04-28 | F77: 30 | G77: 986 | H77: 42,656.45 | I77: 952.04 | J77: 340.15 | K77: 372.31 | L77: 0 | M77: 1,664.49 | N77: 41,704.42 | O77: 0.77 | P77: 0.77 | R77: 1,664.49 | S77: 986 | T77: 2.21 | U77: 753.55
B78: 31 | C78: 2027-05-28 | D78: 5 | E78: 2027-05-28 | F78: 30 | G78: 1016 | H78: 41,704.42 | I78: 959.63 | J78: 332.56 | K78: 372.31 | L78: 0 | M78: 1,664.49 | N78: 40,744.79 | O78: 0.76 | P78: 0.76 | R78: 1,664.49 | S78: 1016 | T78: 2.26 | U78: 735.60
B79: 32 | C79: 2027-06-28 | D79: 1 | E79: 2027-06-28 | F79: 31 | G79: 1047 | H79: 40,744.79 | I79: 956.40 | J79: 335.78 | K79: 372.31 | L79: 0 | M79: 1,664.49 | N79: 39,788.39 | O79: 0.76 | P79: 0.76 | R79: 1,664.49 | S79: 1047 | T79: 2.32 | U79: 717.49
B80: 33 | C80: 2027-07-28 | D80: 3 | E80: 2027-07-28 | F80: 30 | G80: 1077 | H80: 39,788.39 | I80: 2,639.40 | J80: 317.28 | K80: 372.31 | L80: 0 | M80: 3,328.99 | N80: 37,148.99 | O80: 1.50 | P80: 0.75 | R80: 3,328.99 | S80: 1077 | T80: 2.38 | U80: 1,400.80
B81: 34 | C81: 2027-08-28 | D81: 6 | E81: 2027-08-28 | F81: 31 | G81: 1108 | H81: 37,148.99 | I81: 986.04 | J81: 306.15 | K81: 372.31 | L81: 0 | M81: 1,664.49 | N81: 36,162.95 | O81: 0.75 | P81: 0.75 | R81: 1,664.49 | S81: 1108 | T81: 2.44 | U81: 683.17
B82: 35 | C82: 2027-09-28 | D82: 2 | E82: 2027-09-28 | F82: 31 | G82: 1139 | H82: 36,162.95 | I82: 994.16 | J82: 298.02 | K82: 372.31 | L82: 0 | M82: 1,664.49 | N82: 35,168.78 | O82: 0.74 | P82: 0.74 | R82: 1,664.49 | S82: 1139 | T82: 2.50 | U82: 666.35
B83: 36 | C83: 2027-10-28 | D83: 4 | E83: 2027-10-28 | F83: 30 | G83: 1169 | H83: 35,168.78 | I83: 1,011.74 | J83: 280.44 | K83: 372.31 | L83: 0 | M83: 1,664.49 | N83: 34,157.04 | O83: 0.73 | P83: 0.73 | R83: 1,664.49 | S83: 1169 | T83: 2.56 | U83: 650.48
B84: 37 | C84: 2027-11-28 | D84: 7 | E84: 2027-11-29 | F84: 32 | G84: 1201 | H84: 34,157.04 | I84: 1,001.58 | J84: 290.61 | K84: 372.31 | L84: 0 | M84: 1,664.49 | N84: 33,155.46 | O84: 0.73 | P84: 0.73 | R84: 1,664.49 | S84: 1201 | T84: 2.63 | U84: 633.96
B85: 38 | C85: 2027-12-28 | D85: 2 | E85: 2027-12-28 | F85: 29 | G85: 1230 | H85: 33,155.46 | I85: 2,701.14 | J85: 255.54 | K85: 372.31 | L85: 0 | M85: 3,328.99 | N85: 30,454.33 | O85: 1.44 | P85: 0.72 | R85: 3,328.99 | S85: 1230 | T85: 2.69 | U85: 1,238.71
B86: 39 | C86: 2028-01-28 | D86: 5 | E86: 2028-01-28 | F86: 31 | G86: 1261 | H86: 30,454.33 | I86: 1,041.21 | J86: 250.98 | K86: 372.31 | L86: 0 | M86: 1,664.49 | N86: 29,413.12 | O86: 0.72 | P86: 0.72 | R86: 1,664.49 | S86: 1261 | T86: 2.76 | U86: 604.12
B87: 40 | C87: 2028-02-28 | D87: 1 | E87: 2028-02-28 | F87: 31 | G87: 1292 | H87: 29,413.12 | I87: 1,049.79 | J87: 242.39 | K87: 372.31 | L87: 0 | M87: 1,664.49 | N87: 28,363.33 | O87: 0.71 | P87: 0.71 | R87: 1,664.49 | S87: 1292 | T87: 2.82 | U87: 589.25
B88: 41 | C88: 2028-03-28 | D88: 2 | E88: 2028-03-28 | F88: 29 | G88: 1321 | H88: 28,363.33 | I88: 1,073.58 | J88: 218.61 | K88: 372.31 | L88: 0 | M88: 1,664.49 | N88: 27,289.75 | O88: 0.70 | P88: 0.70 | R88: 1,664.49 | S88: 1321 | T88: 2.89 | U88: 575.67
B89: 42 | C89: 2028-04-28 | D89: 5 | E89: 2028-04-28 | F89: 31 | G89: 1352 | H89: 27,289.75 | I89: 1,067.29 | J89: 224.90 | K89: 372.31 | L89: 0 | M89: 1,664.49 | N89: 26,222.46 | O89: 0.70 | P89: 0.70 | R89: 1,664.49 | S89: 1352 | T89: 2.96 | U89: 561.51
B90: 43 | C90: 2028-05-28 | D90: 7 | E90: 2028-05-29 | F90: 31 | G90: 1383 | H90: 26,222.46 | I90: 1,076.08 | J90: 216.10 | K90: 372.31 | L90: 0 | M90: 1,664.49 | N90: 25,146.38 | O90: 0.69 | P90: 0.69 | R90: 1,664.49 | S90: 1383 | T90: 3.04 | U90: 547.69
B91: 44 | C91: 2028-06-28 | D91: 3 | E91: 2028-06-28 | F91: 30 | G91: 1413 | H91: 25,146.38 | I91: 1,091.66 | J91: 200.52 | K91: 372.31 | L91: 0 | M91: 1,664.49 | N91: 24,054.71 | O91: 0.69 | P91: 0.69 | R91: 1,664.49 | S91: 1413 | T91: 3.11 | U91: 534.64
B92: 45 | C92: 2028-07-28 | D92: 5 | E92: 2028-07-28 | F92: 30 | G92: 1443 | H92: 24,054.71 | I92: 2,764.86 | J92: 191.82 | K92: 372.31 | L92: 0 | M92: 3,328.99 | N92: 21,289.85 | O92: 1.36 | P92: 0.68 | R92: 3,328.99 | S92: 1443 | T92: 3.19 | U92: 1,043.81
B93: 46 | C93: 2028-08-28 | D93: 1 | E93: 2028-08-28 | F93: 31 | G93: 1474 | H93: 21,289.85 | I93: 1,116.73 | J93: 175.45 | K93: 372.31 | L93: 0 | M93: 1,664.49 | N93: 20,173.12 | O93: 0.68 | P93: 0.68 | R93: 1,664.49 | S93: 1474 | T93: 3.27 | U93: 509.06
B94: 47 | C94: 2028-09-28 | D94: 4 | E94: 2028-09-28 | F94: 31 | G94: 1505 | H94: 20,173.12 | I94: 1,125.94 | J94: 166.25 | K94: 372.31 | L94: 0 | M94: 1,664.49 | N94: 19,047.18 | O94: 0.67 | P94: 0.67 | R94: 1,664.49 | S94: 1505 | T94: 3.35 | U94: 496.54
B95: 48 | C95: 2028-10-28 | D95: 6 | E95: 2028-10-28 | F95: 30 | G95: 1535 | H95: 19,047.18 | I95: 1,140.30 | J95: 151.88 | K95: 372.31 | L95: 0 | M95: 1,664.49 | N95: 17,906.88 | O95: 0.67 | P95: 0.67 | R95: 1,664.49 | S95: 1535 | T95: 3.43 | U95: 484.71
B96: 49 | C96: 2028-11-28 | D96: 2 | E96: 2028-11-28 | F96: 31 | G96: 1566 | H96: 17,906.88 | I96: 1,144.61 | J96: 147.57 | K96: 372.31 | L96: 0 | M96: 1,664.49 | N96: 16,762.27 | O96: 0.66 | P96: 0.66 | R96: 1,664.49 | S96: 1566 | T96: 3.52 | U96: 472.78
B97: 50 | C97: 2028-12-28 | D97: 4 | E97: 2028-12-28 | F97: 30 | G97: 1596 | H97: 16,762.27 | I97: 2,823.01 | J97: 133.66 | K97: 372.31 | L97: 0 | M97: 3,328.99 | N97: 13,939.26 | O97: 1.31 | P97: 0.66 | R97: 3,328.99 | S97: 1596 | T97: 3.61 | U97: 923.03
B98: 51 | C98: 2029-01-28 | D98: 7 | E98: 2029-01-29 | F98: 32 | G98: 1628 | H98: 13,939.26 | I98: 1,173.59 | J98: 118.60 | K98: 372.31 | L98: 0 | M98: 1,664.49 | N98: 12,765.67 | O98: 0.65 | P98: 0.65 | R98: 1,664.49 | S98: 1628 | T98: 3.70 | U98: 449.80
B99: 52 | C99: 2029-02-28 | D99: 3 | E99: 2029-02-28 | F99: 30 | G99: 1658 | H99: 12,765.67 | I99: 1,190.39 | J99: 101.80 | K99: 372.31 | L99: 0 | M99: 1,664.49 | N99: 11,575.28 | O99: 0.64 | P99: 0.64 | R99: 1,664.49 | S99: 1658 | T99: 3.79 | U99: 439.08
B100: 53 | C100: 2029-03-28 | D100: 3 | E100: 2029-03-28 | F100: 28 | G100: 1686 | H100: 11,575.28 | I100: 1,206.06 | J100: 86.13 | K100: 372.31 | L100: 0 | M100: 1,664.49 | N100: 10,369.22 | O100: 0.64 | P100: 0.64 | R100: 1,664.49 | S100: 1686 | T100: 3.88 | U100: 429.31
B101: 54 | C101: 2029-04-28 | D101: 6 | E101: 2029-04-28 | F101: 31 | G101: 1717 | H101: 10,369.22 | I101: 1,206.73 | J101: 85.45 | K101: 372.31 | L101: 0 | M101: 1,664.49 | N101: 9,162.49 | O101: 0.63 | P101: 0.63 | R101: 1,664.49 | S101: 1717 | T101: 3.97 | U101: 418.75
B102: 55 | C102: 2029-05-28 | D102: 1 | E102: 2029-05-28 | F102: 30 | G102: 1747 | H102: 9,162.49 | I102: 1,219.12 | J102: 73.06 | K102: 372.31 | L102: 0 | M102: 1,664.49 | N102: 7,943.37 | O102: 0.63 | P102: 0.63 | R102: 1,664.49 | S102: 1747 | T102: 4.07 | U102: 408.77
B103: 56 | C103: 2029-06-28 | D103: 4 | E103: 2029-06-28 | F103: 31 | G103: 1778 | H103: 7,943.37 | I103: 1,226.72 | J103: 65.46 | K103: 372.31 | L103: 0 | M103: 1,664.49 | N103: 6,716.64 | O103: 0.62 | P103: 0.62 | R103: 1,664.49 | S103: 1778 | T103: 4.17 | U103: 398.71
B104: 57 | C104: 2029-07-28 | D104: 6 | E104: 2029-07-28 | F104: 30 | G104: 1808 | H104: 6,716.64 | I104: 2,903.12 | J104: 53.56 | K104: 372.31 | L104: 0 | M104: 3,328.99 | N104: 3,813.53 | O104: 1.24 | P104: 0.62 | R104: 3,328.99 | S104: 1808 | T104: 4.28 | U104: 778.42
B105: 58 | C105: 2029-08-28 | D105: 2 | E105: 2029-08-28 | F105: 31 | G105: 1839 | H105: 3,813.53 | I105: 1,260.76 | J105: 31.43 | K105: 372.31 | L105: 0 | M105: 1,664.49 | N105: 2,552.77 | O105: 0.61 | P105: 0.61 | R105: 1,664.49 | S105: 1839 | T105: 4.38 | U105: 379.63
B106: 59 | C106: 2029-09-28 | D106: 5 | E106: 2029-09-28 | F106: 31 | G106: 1870 | H106: 2,552.77 | I106: 1,271.15 | J106: 21.04 | K106: 372.31 | L106: 0 | M106: 1,664.49 | N106: 1,281.62 | O106: 0.61 | P106: 0.61 | R106: 1,664.49 | S106: 1870 | T106: 4.50 | U106: 370.29
B107: 60 | C107: 2029-10-28 | D107: 7 | E107: 2029-10-29 | F107: 31 | G107: 1901 | H107: 1,281.62 | I107: 1,281.62 | J107: 10.56 | K107: 372.31 | L107: 0 | M107: 1,664.49 | N107: 0 | O107: 0.60 | P107: 0.60 | R107: 1,664.49 | S107: 1901 | T107: 4.61 | U107: 361.18
B108: 61
B109: 62
B110: 63
B111: 64
B112: 65 | D112: =IF(B112<=$C$25,WEEKDAY(C112,2),"") ->  | J112: =IF(B112>C$25,"",((1+C$31)^(F112/360)-1)*H112) ->  | K112: =IF(B112>C$25,"",C$33*C$35) ->  | L112: =IF(B112>C$25,"",C$36) ->  | M112: =IF(B112>C$25,"",IF(B112=C$25,H112+J112+K112+L112,IF(AND(C$29=2,MONTH(E112)=7),2*C$37,IF(AND(C$30=2,MONTH(E112)=12),2*C$37,C$37)))) ->  | N112: =IF(B112>C$25,"",H112-I112) ->  | O112: =IFERROR(IF(AND(MONTH(E112)=7,C$29=2),2/(1+C$32)^(G112/360),IF(AND(MONTH(E112)=12,C$30=2),2/(1+C$32)^(G112/360),1/(1+C$32)^(G112/360))),"") ->  | P112: =IFERROR(1/(1+C$32)^(G112/360),"") ->  | S112: =G112 ->  | T112: =IFERROR((1+C$39)^(S112/360),"") ->  | U112: =IFERROR(ROUND(R112/T112,2),"") -> 
B113: 66 | C113: =IF(B113>$C$25,"",EDATE(C112,1)) ->  | E113: =IF(D113=7,C113+1,C113) ->  | F113: =IF(B113>C$25,"",E113-E112) ->  | G113: =IFERROR(F113+G112,"") ->  | H113: =IF(B113>C$25,"",N112) ->  | I113: =IF(B113>C$25,"",M113-L113-K113-J113) ->  | R113: =IFERROR(I113+J113+K113+L113,"") -> 
B114: 67
B115: 68
B116: 69
B117: 70
B118: 71
B119: 72
B120: 73
B121: 74
B122: 75
B123: 76
B124: 77
B125: 78
B126: 79
B127: 80
B128: 81
B129: 82
B130: 83
B131: 84
B132: 85
B133: 86
B134: 87
B135: 88
B136: 89
B137: 90
B138: 91
B139: 92
B140: 93
B141: 94
B142: 95
B143: 96
B144: 97
B145: 98
B146: 99
B147: 100
B148: 101
B149: 102
B150: 103
B151: 104
B152: 105
B153: 106
B154: 107
B155: 108
B156: 109
B157: 110
B158: 111
B159: 112
B160: 113
B161: 114
B162: 115
B163: 116
B164: 117
B165: 118
B166: 119
B167: 120
B168: 121
B169: 122
B170: 123
B171: 124
B172: 125
B173: 126
B174: 127
B175: 128
B176: 129 | D176: =IF(B176<=$C$25,WEEKDAY(C176,2),"") ->  | J176: =IF(B176>C$25,"",((1+C$31)^(F176/360)-1)*H176) ->  | K176: =IF(B176>C$25,"",C$33*C$35) ->  | L176: =IF(B176>C$25,"",C$36) ->  | M176: =IF(B176>C$25,"",IF(B176=C$25,H176+J176+K176+L176,IF(AND(C$29=2,MONTH(E176)=7),2*C$37,IF(AND(C$30=2,MONTH(E176)=12),2*C$37,C$37)))) ->  | N176: =IF(B176>C$25,"",H176-I176) ->  | O176: =IFERROR(IF(AND(MONTH(E176)=7,C$29=2),2/(1+C$32)^(G176/360),IF(AND(MONTH(E176)=12,C$30=2),2/(1+C$32)^(G176/360),1/(1+C$32)^(G176/360))),"") ->  | P176: =IFERROR(1/(1+C$32)^(G176/360),"") ->  | S176: =G176 ->  | T176: =IFERROR((1+C$39)^(S176/360),"") ->  | U176: =IFERROR(ROUND(R176/T176,2),"") -> 
B177: 130 | C177: =IF(B177>$C$25,"",EDATE(C176,1)) ->  | E177: =IF(D177=7,C177+1,C177) ->  | F177: =IF(B177>C$25,"",E177-E176) ->  | G177: =IFERROR(F177+G176,"") ->  | H177: =IF(B177>C$25,"",N176) ->  | I177: =IF(B177>C$25,"",M177-L177-K177-J177) ->  | R177: =IFERROR(I177+J177+K177+L177,"") -> 
B178: 131
B179: 132
B180: 133
B181: 134
B182: 135
B183: 136
B184: 137
B185: 138
B186: 139
B187: 140
B188: 141
B189: 142
B190: 143
B191: 144
B192: 145
B193: 146
B194: 147
B195: 148
B196: 149
B197: 150
B198: 151
B199: 152
B200: 153
B201: 154
B202: 155
B203: 156
B204: 157
B205: 158
B206: 159
B207: 160
B208: 161
B209: 162
B210: 163
B211: 164
B212: 165
B213: 166
B214: 167
B215: 168
... 192 more rows

Sheet Cronograma (hidden)
B5: Importante: - Las datos del simulador son referenciales. - El otorgamiendo del préstamo esta sujeto a calificación. - La fecha de desembolso, es la fecha de solicitud que ha ingresado en este simulador.
B7: =+'Vista Principal'!B47 -> N° Cuota | C7: =+'Vista Principal'!C47 -> Fecha de pago | D7: =+'Vista Principal'!D47 -> Día | E7: =+'Vista Principal'!E47 -> Fecha de pago | F7: =+'Vista Principal'!F47 -> Días | G7: =+'Vista Principal'!G47 -> Dias Acumulados | H7: =+'Vista Principal'!H47 -> Saldo Inicial | I7: =+'Vista Principal'!I47 -> Amortización | J7: =+'Vista Principal'!J47 -> Interés | K7: =+'Vista Principal'!K47 -> Seguro del Bien | L7: =+'Vista Principal'!L47 -> Portes | M7: =+'Vista Principal'!M47 -> Cuota Constante | N7: =+'Vista Principal'!N47 -> Saldo Final
B8: =+'Vista Principal'!B48 -> 1 | C8: =+'Vista Principal'!C48 -> 2024-11-30 | D8: =+'Vista Principal'!D48 -> 6 | E8: =+'Vista Principal'!E48 -> 2024-11-30 | F8: =+'Vista Principal'!F48 -> 107 | G8: =+'Vista Principal'!G48 -> 107 | H8: =+'Vista Principal'!H48 -> 73037.26049 | I8: =+'Vista Principal'!I48 -> -806.4220637 | J8: =+'Vista Principal'!J48 -> 2098.606315 | K8: =+'Vista Principal'!K48 -> 372.3091772 | L8: =+'Vista Principal'!L48 -> 0 | M8: =+'Vista Principal'!M48 -> 1664.493428 | N8: =+'Vista Principal'!N48 -> 73843.68256
B9: =+'Vista Principal'!B49 -> 2 | C9: =+'Vista Principal'!C49 -> 2024-12-30 | D9: =+'Vista Principal'!D49 -> 1 | E9: =+'Vista Principal'!E49 -> 2024-12-30 | F9: =+'Vista Principal'!F49 -> 30 | G9: =+'Vista Principal'!G49 -> 137 | H9: =+'Vista Principal'!H49 -> 73843.68256 | I9: =+'Vista Principal'!I49 -> 2367.837785 | J9: =+'Vista Principal'!J49 -> 588.8398945 | K9: =+'Vista Principal'!K49 -> 372.3091772 | L9: =+'Vista Principal'!L49 -> 0 | M9: =+'Vista Principal'!M49 -> 3328.986857 | N9: =+'Vista Principal'!N49 -> 71475.84477
B10: =+'Vista Principal'!B50 -> 3 | C10: =+'Vista Principal'!C50 -> 2025-01-30 | D10: =+'Vista Principal'!D50 -> 4 | E10: =+'Vista Principal'!E50 -> 2025-01-30 | F10: =+'Vista Principal'!F50 -> 31 | G10: =+'Vista Principal'!G50 -> 168 | H10: =+'Vista Principal'!H50 -> 71475.84477 | I10: =+'Vista Principal'!I50 -> 703.1491402 | J10: =+'Vista Principal'!J50 -> 589.035111 | K10: =+'Vista Principal'!K50 -> 372.3091772 | L10: =+'Vista Principal'!L50 -> 0 | M10: =+'Vista Principal'!M50 -> 1664.493428 | N10: =+'Vista Principal'!N50 -> 70772.69563
B11: =+'Vista Principal'!B51 -> 4 | C11: =+'Vista Principal'!C51 -> 2025-02-28 | D11: =+'Vista Principal'!D51 -> 5 | E11: =+'Vista Principal'!E51 -> 2025-02-28 | F11: =+'Vista Principal'!F51 -> 29 | G11: =+'Vista Principal'!G51 -> 197 | H11: =+'Vista Principal'!H51 -> 70772.69563 | I11: =+'Vista Principal'!I51 -> 746.7168566 | J11: =+'Vista Principal'!J51 -> 545.4673946 | K11: =+'Vista Principal'!K51 -> 372.3091772 | L11: =+'Vista Principal'!L51 -> 0 | M11: =+'Vista Principal'!M51 -> 1664.493428 | N11: =+'Vista Principal'!N51 -> 70025.97878
B12: =+'Vista Principal'!B52 -> 5 | C12: =+'Vista Principal'!C52 -> 2025-03-28 | D12: =+'Vista Principal'!D52 -> 5 | E12: =+'Vista Principal'!E52 -> 2025-03-28 | F12: =+'Vista Principal'!F52 -> 28 | G12: =+'Vista Principal'!G52 -> 225 | H12: =+'Vista Principal'!H52 -> 70025.97878 | I12: =+'Vista Principal'!I52 -> 771.1518671 | J12: =+'Vista Principal'!J52 -> 521.0323841 | K12: =+'Vista Principal'!K52 -> 372.3091772 | L12: =+'Vista Principal'!L52 -> 0 | M12: =+'Vista Principal'!M52 -> 1664.493428 | N12: =+'Vista Principal'!N52 -> 69254.82691
B13: =+'Vista Principal'!B53 -> 6 | C13: =+'Vista Principal'!C53 -> 2025-04-28 | D13: =+'Vista Principal'!D53 -> 1 | E13: =+'Vista Principal'!E53 -> 2025-04-28 | F13: =+'Vista Principal'!F53 -> 31 | G13: =+'Vista Principal'!G53 -> 256 | H13: =+'Vista Principal'!H53 -> 69254.82691 | I13: =+'Vista Principal'!I53 -> 721.4526315 | J13: =+'Vista Principal'!J53 -> 570.7316197 | K13: =+'Vista Principal'!K53 -> 372.3091772 | L13: =+'Vista Principal'!L53 -> 0 | M13: =+'Vista Principal'!M53 -> 1664.493428 | N13: =+'Vista Principal'!N53 -> 68533.37428
B14: =+'Vista Principal'!B54 -> 7 | C14: =+'Vista Principal'!C54 -> 2025-05-28 | D14: =+'Vista Principal'!D54 -> 3 | E14: =+'Vista Principal'!E54 -> 2025-05-28 | F14: =+'Vista Principal'!F54 -> 30 | G14: =+'Vista Principal'!G54 -> 286 | H14: =+'Vista Principal'!H54 -> 68533.37428 | I14: =+'Vista Principal'!I54 -> 745.6895006 | J14: =+'Vista Principal'!J54 -> 546.4947506 | K14: =+'Vista Principal'!K54 -> 372.3091772 | L14: =+'Vista Principal'!L54 -> 0 | M14: =+'Vista Principal'!M54 -> 1664.493428 | N14: =+'Vista Principal'!N54 -> 67787.68478
B15: =+'Vista Principal'!B55 -> 8 | C15: =+'Vista Principal'!C55 -> 2025-06-28 | D15: =+'Vista Principal'!D55 -> 6 | E15: =+'Vista Principal'!E55 -> 2025-06-28 | F15: =+'Vista Principal'!F55 -> 31 | G15: =+'Vista Principal'!G55 -> 317 | H15: =+'Vista Principal'!H55 -> 67787.68478 | I15: =+'Vista Principal'!I55 -> 733.5434047 | J15: =+'Vista Principal'!J55 -> 558.6408465 | K15: =+'Vista Principal'!K55 -> 372.3091772 | L15: =+'Vista Principal'!L55 -> 0 | M15: =+'Vista Principal'!M55 -> 1664.493428 | N15: =+'Vista Principal'!N55 -> 67054.14137
B16: =+'Vista Principal'!B56 -> 9 | C16: =+'Vista Principal'!C56 -> 2025-07-28 | D16: =+'Vista Principal'!D56 -> 1 | E16: =+'Vista Principal'!E56 -> 2025-07-28 | F16: =+'Vista Principal'!F56 -> 30 | G16: =+'Vista Principal'!G56 -> 347 | H16: =+'Vista Principal'!H56 -> 67054.14137 | I16: =+'Vista Principal'!I56 -> 2421.97854 | J16: =+'Vista Principal'!J56 -> 534.6991396 | K16: =+'Vista Principal'!K56 -> 372.3091772 | L16: =+'Vista Principal'!L56 -> 0 | M16: =+'Vista Principal'!M56 -> 3328.986857 | N16: =+'Vista Principal'!N56 -> 64632.16283
B17: =+'Vista Principal'!B57 -> 10 | C17: =+'Vista Principal'!C57 -> 2025-08-28 | D17: =+'Vista Principal'!D57 -> 4 | E17: =+'Vista Principal'!E57 -> 2025-08-28 | F17: =+'Vista Principal'!F57 -> 31 | G17: =+'Vista Principal'!G57 -> 378 | H17: =+'Vista Principal'!H57 -> 64632.16283 | I17: =+'Vista Principal'!I57 -> 759.5481791 | J17: =+'Vista Principal'!J57 -> 532.6360721 | K17: =+'Vista Principal'!K57 -> 372.3091772 | L17: =+'Vista Principal'!L57 -> 0 | M17: =+'Vista Principal'!M57 -> 1664.493428 | N17: =+'Vista Principal'!N57 -> 63872.61465
B18: =+'Vista Principal'!B58 -> 11 | C18: =+'Vista Principal'!C58 -> 2025-09-28 | D18: =+'Vista Principal'!D58 -> 7 | E18: =+'Vista Principal'!E58 -> 2025-09-29 | F18: =+'Vista Principal'!F58 -> 32 | G18: =+'Vista Principal'!G58 -> 410 | H18: =+'Vista Principal'!H58 -> 63872.61465 | I18: =+'Vista Principal'!I58 -> 748.7557218 | J18: =+'Vista Principal'!J58 -> 543.4285294 | K18: =+'Vista Principal'!K58 -> 372.3091772 | L18: =+'Vista Principal'!L58 -> 0 | M18: =+'Vista Principal'!M58 -> 1664.493428 | N18: =+'Vista Principal'!N58 -> 63123.85893
B19: =+'Vista Principal'!B59 -> 12 | C19: =+'Vista Principal'!C59 -> 2025-10-28 | D19: =+'Vista Principal'!D59 -> 2 | E19: =+'Vista Principal'!E59 -> 2025-10-28 | F19: =+'Vista Principal'!F59 -> 29 | G19: =+'Vista Principal'!G59 -> 439 | H19: =+'Vista Principal'!H59 -> 63123.85893 | I19: =+'Vista Principal'!I59 -> 805.6688436 | J19: =+'Vista Principal'!J59 -> 486.5154076 | K19: =+'Vista Principal'!K59 -> 372.3091772 | L19: =+'Vista Principal'!L59 -> 0 | M19: =+'Vista Principal'!M59 -> 1664.493428 | N19: =+'Vista Principal'!N59 -> 62318.19009
B20: =+'Vista Principal'!B60 -> 13 | C20: =+'Vista Principal'!C60 -> 2025-11-28 | D20: =+'Vista Principal'!D60 -> 5 | E20: =+'Vista Principal'!E60 -> 2025-11-28 | F20: =+'Vista Principal'!F60 -> 31 | G20: =+'Vista Principal'!G60 -> 470 | H20: =+'Vista Principal'!H60 -> 62318.19009 | I20: =+'Vista Principal'!I60 -> 778.617715 | J20: =+'Vista Principal'!J60 -> 513.5665361 | K20: =+'Vista Principal'!K60 -> 372.3091772 | L20: =+'Vista Principal'!L60 -> 0 | M20: =+'Vista Principal'!M60 -> 1664.493428 | N20: =+'Vista Principal'!N60 -> 61539.57237
B21: =+'Vista Principal'!B61 -> 14 | C21: =+'Vista Principal'!C61 -> 2025-12-28 | D21: =+'Vista Principal'!D61 -> 7 | E21: =+'Vista Principal'!E61 -> 2025-12-29 | F21: =+'Vista Principal'!F61 -> 31 | G21: =+'Vista Principal'!G61 -> 501 | H21: =+'Vista Principal'!H61 -> 61539.57237 | I21: =+'Vista Principal'!I61 -> 2449.527761 | J21: =+'Vista Principal'!J61 -> 507.1499184 | K21: =+'Vista Principal'!K61 -> 372.3091772 | L21: =+'Vista Principal'!L61 -> 0 | M21: =+'Vista Principal'!M61 -> 3328.986857 | N21: =+'Vista Principal'!N61 -> 59090.04461
B22: =+'Vista Principal'!B62 -> 15 | C22: =+'Vista Principal'!C62 -> 2026-01-28 | D22: =+'Vista Principal'!D62 -> 3 | E22: =+'Vista Principal'!E62 -> 2026-01-28 | F22: =+'Vista Principal'!F62 -> 30 | G22: =+'Vista Principal'!G62 -> 531 | H22: =+'Vista Principal'!H62 -> 59090.04461 | I22: =+'Vista Principal'!I62 -> 820.9919375 | J22: =+'Vista Principal'!J62 -> 471.1923137 | K22: =+'Vista Principal'!K62 -> 372.3091772 | L22: =+'Vista Principal'!L62 -> 0 | M22: =+'Vista Principal'!M62 -> 1664.493428 | N22: =+'Vista Principal'!N62 -> 58269.05267
B23: =+'Vista Principal'!B63 -> 16 | C23: =+'Vista Principal'!C63 -> 2026-02-28 | D23: =+'Vista Principal'!D63 -> 6 | E23: =+'Vista Principal'!E63 -> 2026-02-28 | F23: =+'Vista Principal'!F63 -> 31 | G23: =+'Vista Principal'!G63 -> 562 | H23: =+'Vista Principal'!H63 -> 58269.05267 | I23: =+'Vista Principal'!I63 -> 811.986808 | J23: =+'Vista Principal'!J63 -> 480.1974432 | K23: =+'Vista Principal'!K63 -> 372.3091772 | L23: =+'Vista Principal'!L63 -> 0 | M23: =+'Vista Principal'!M63 -> 1664.493428 | N23: =+'Vista Principal'!N63 -> 57457.06587
B24: =+'Vista Principal'!B64 -> 17 | C24: =+'Vista Principal'!C64 -> 2026-03-28 | D24: =+'Vista Principal'!D64 -> 6 | E24: =+'Vista Principal'!E64 -> 2026-03-28 | F24: =+'Vista Principal'!F64 -> 28 | G24: =+'Vista Principal'!G64 -> 590 | H24: =+'Vista Principal'!H64 -> 57457.06587 | I24: =+'Vista Principal'!I64 -> 864.6715975 | J24: =+'Vista Principal'!J64 -> 427.5126537 | K24: =+'Vista Principal'!K64 -> 372.3091772 | L24: =+'Vista Principal'!L64 -> 0 | M24: =+'Vista Principal'!M64 -> 1664.493428 | N24: =+'Vista Principal'!N64 -> 56592.39427
B25: =+'Vista Principal'!B65 -> 18 | C25: =+'Vista Principal'!C65 -> 2026-04-28 | D25: =+'Vista Principal'!D65 -> 2 | E25: =+'Vista Principal'!E65 -> 2026-04-28 | F25: =+'Vista Principal'!F65 -> 31 | G25: =+'Vista Principal'!G65 -> 621 | H25: =+'Vista Principal'!H65 -> 56592.39427 | I25: =+'Vista Principal'!I65 -> 825.8042126 | J25: =+'Vista Principal'!J65 -> 466.3800386 | K25: =+'Vista Principal'!K65 -> 372.3091772 | L25: =+'Vista Principal'!L65 -> 0 | M25: =+'Vista Principal'!M65 -> 1664.493428 | N25: =+'Vista Principal'!N65 -> 55766.59006
B26: =+'Vista Principal'!B66 -> 19 | C26: =+'Vista Principal'!C66 -> 2026-05-28 | D26: =+'Vista Principal'!D66 -> 4 | E26: =+'Vista Principal'!E66 -> 2026-05-28 | F26: =+'Vista Principal'!F66 -> 30 | G26: =+'Vista Principal'!G66 -> 651 | H26: =+'Vista Principal'!H66 -> 55766.59006 | I26: =+'Vista Principal'!I66 -> 847.4936308 | J26: =+'Vista Principal'!J66 -> 444.6906203 | K26: =+'Vista Principal'!K66 -> 372.3091772 | L26: =+'Vista Principal'!L66 -> 0 | M26: =+'Vista Principal'!M66 -> 1664.493428 | N26: =+'Vista Principal'!N66 -> 54919.09642
B27: =+'Vista Principal'!B67 -> 20 | C27: =+'Vista Principal'!C67 -> 2026-06-28 | D27: =+'Vista Principal'!D67 -> 7 | E27: =+'Vista Principal'!E67 -> 2026-06-29 | F27: =+'Vista Principal'!F67 -> 32 | G27: =+'Vista Principal'!G67 -> 683 | H27: =+'Vista Principal'!H67 -> 54919.09642 | I27: =+'Vista Principal'!I67 -> 824.9323003 | J27: =+'Vista Principal'!J67 -> 467.2519509 | K27: =+'Vista Principal'!K67 -> 372.3091772 | L27: =+'Vista Principal'!L67 -> 0 | M27: =+'Vista Principal'!M67 -> 1664.493428 | N27: =+'Vista Principal'!N67 -> 54094.16412
B28: =+'Vista Principal'!B68 -> 21 | C28: =+'Vista Principal'!C68 -> 2026-07-28 | D28: =+'Vista Principal'!D68 -> 2 | E28: =+'Vista Principal'!E68 -> 2026-07-28 | F28: =+'Vista Principal'!F68 -> 29 | G28: =+'Vista Principal'!G68 -> 712 | H28: =+'Vista Principal'!H68 -> 54094.16412 | I28: =+'Vista Principal'!I68 -> 2539.756966 | J28: =+'Vista Principal'!J68 -> 416.9207136 | K28: =+'Vista Principal'!K68 -> 372.3091772 | L28: =+'Vista Principal'!L68 -> 0 | M28: =+'Vista Principal'!M68 -> 3328.986857 | N28: =+'Vista Principal'!N68 -> 51554.40716
B29: =+'Vista Principal'!B69 -> 22 | C29: =+'Vista Principal'!C69 -> 2026-08-28 | D29: =+'Vista Principal'!D69 -> 5 | E29: =+'Vista Principal'!E69 -> 2026-08-28 | F29: =+'Vista Principal'!F69 -> 31 | G29: =+'Vista Principal'!G69 -> 743 | H29: =+'Vista Principal'!H69 -> 51554.40716 | I29: =+'Vista Principal'!I69 -> 867.3224529 | J29: =+'Vista Principal'!J69 -> 424.8617983 | K29: =+'Vista Principal'!K69 -> 372.3091772 | L29: =+'Vista Principal'!L69 -> 0 | M29: =+'Vista Principal'!M69 -> 1664.493428 | N29: =+'Vista Principal'!N69 -> 50687.08471
B30: =+'Vista Principal'!B70 -> 23 | C30: =+'Vista Principal'!C70 -> 2026-09-28 | D30: =+'Vista Principal'!D70 -> 1 | E30: =+'Vista Principal'!E70 -> 2026-09-28 | F30: =+'Vista Principal'!F70 -> 31 | G30: =+'Vista Principal'!G70 -> 774 | H30: =+'Vista Principal'!H70 -> 50687.08471 | I30: =+'Vista Principal'!I70 -> 874.4700897 | J30: =+'Vista Principal'!J70 -> 417.7141615 | K30: =+'Vista Principal'!K70 -> 372.3091772 | L30: =+'Vista Principal'!L70 -> 0 | M30: =+'Vista Principal'!M70 -> 1664.493428 | N30: =+'Vista Principal'!N70 -> 49812.61462
B31: =+'Vista Principal'!B71 -> 24 | C31: =+'Vista Principal'!C71 -> 2026-10-28 | D31: =+'Vista Principal'!D71 -> 3 | E31: =+'Vista Principal'!E71 -> 2026-10-28 | F31: =+'Vista Principal'!F71 -> 30 | G31: =+'Vista Principal'!G71 -> 804 | H31: =+'Vista Principal'!H71 -> 49812.61462 | I31: =+'Vista Principal'!I71 -> 894.9714671 | J31: =+'Vista Principal'!J71 -> 397.2127841 | K31: =+'Vista Principal'!K71 -> 372.3091772 | L31: =+'Vista Principal'!L71 -> 0 | M31: =+'Vista Principal'!M71 -> 1664.493428 | N31: =+'Vista Principal'!N71 -> 48917.64315
B32: =+'Vista Principal'!B72 -> 25 | C32: =+'Vista Principal'!C72 -> 2026-11-28 | D32: =+'Vista Principal'!D72 -> 6 | E32: =+'Vista Principal'!E72 -> 2026-11-28 | F32: =+'Vista Principal'!F72 -> 31 | G32: =+'Vista Principal'!G72 -> 835 | H32: =+'Vista Principal'!H72 -> 48917.64315 | I32: =+'Vista Principal'!I72 -> 889.0521238 | J32: =+'Vista Principal'!J72 -> 403.1321274 | K32: =+'Vista Principal'!K72 -> 372.3091772 | L32: =+'Vista Principal'!L72 -> 0 | M32: =+'Vista Principal'!M72 -> 1664.493428 | N32: =+'Vista Principal'!N72 -> 48028.59103
B33: =+'Vista Principal'!B73 -> 26 | C33: =+'Vista Principal'!C73 -> 2026-12-28 | D33: =+'Vista Principal'!D73 -> 1 | E33: =+'Vista Principal'!E73 -> 2026-12-28 | F33: =+'Vista Principal'!F73 -> 30 | G33: =+'Vista Principal'!G73 -> 865 | H33: =+'Vista Principal'!H73 -> 48028.59103 | I33: =+'Vista Principal'!I73 -> 2573.69095 | J33: =+'Vista Principal'!J73 -> 382.9867294 | K33: =+'Vista Principal'!K73 -> 372.3091772 | L33: =+'Vista Principal'!L73 -> 0 | M33: =+'Vista Principal'!M73 -> 3328.986857 | N33: =+'Vista Principal'!N73 -> 45454.90007
B34: =+'Vista Principal'!B74 -> 27 | C34: =+'Vista Principal'!C74 -> 2027-01-28 | D34: =+'Vista Principal'!D74 -> 4 | E34: =+'Vista Principal'!E74 -> 2027-01-28 | F34: =+'Vista Principal'!F74 -> 31 | G34: =+'Vista Principal'!G74 -> 896 | H34: =+'Vista Principal'!H74 -> 45454.90007 | I34: =+'Vista Principal'!I74 -> 917.588719 | J34: =+'Vista Principal'!J74 -> 374.5955322 | K34: =+'Vista Principal'!K74 -> 372.3091772 | L34: =+'Vista Principal'!L74 -> 0 | M34: =+'Vista Principal'!M74 -> 1664.493428 | N34: =+'Vista Principal'!N74 -> 44537.31136
B35: =+'Vista Principal'!B75 -> 28 | C35: =+'Vista Principal'!C75 -> 2027-02-28 | D35: =+'Vista Principal'!D75 -> 7 | E35: =+'Vista Principal'!E75 -> 2027-03-01 | F35: =+'Vista Principal'!F75 -> 32 | G35: =+'Vista Principal'!G75 -> 928 | H35: =+'Vista Principal'!H75 -> 44537.31136 | I35: =+'Vista Principal'!I75 -> 913.2605803 | J35: =+'Vista Principal'!J75 -> 378.9236709 | K35: =+'Vista Principal'!K75 -> 372.3091772 | L35: =+'Vista Principal'!L75 -> 0 | M35: =+'Vista Principal'!M75 -> 1664.493428 | N35: =+'Vista Principal'!N75 -> 43624.05078
B36: =+'Vista Principal'!B76 -> 29 | C36: =+'Vista Principal'!C76 -> 2027-03-28 | D36: =+'Vista Principal'!D76 -> 7 | E36: =+'Vista Principal'!E76 -> 2027-03-29 | F36: =+'Vista Principal'!F76 -> 28 | G36: =+'Vista Principal'!G76 -> 956 | H36: =+'Vista Principal'!H76 -> 43624.05078 | I36: =+'Vista Principal'!I76 -> 967.596954 | J36: =+'Vista Principal'!J76 -> 324.5872971 | K36: =+'Vista Principal'!K76 -> 372.3091772 | L36: =+'Vista Principal'!L76 -> 0 | M36: =+'Vista Principal'!M76 -> 1664.493428 | N36: =+'Vista Principal'!N76 -> 42656.45382
B37: =+'Vista Principal'!B77 -> 30 | C37: =+'Vista Principal'!C77 -> 2027-04-28 | D37: =+'Vista Principal'!D77 -> 3 | E37: =+'Vista Principal'!E77 -> 2027-04-28 | F37: =+'Vista Principal'!F77 -> 30 | G37: =+'Vista Principal'!G77 -> 986 | H37: =+'Vista Principal'!H77 -> 42656.45382 | I37: =+'Vista Principal'!I77 -> 952.0356982 | J37: =+'Vista Principal'!J77 -> 340.148553 | K37: =+'Vista Principal'!K77 -> 372.3091772 | L37: =+'Vista Principal'!L77 -> 0 | M37: =+'Vista Principal'!M77 -> 1664.493428 | N37: =+'Vista Principal'!N77 -> 41704.41812
B38: =+'Vista Principal'!B78 -> 31 | C38: =+'Vista Principal'!C78 -> 2027-05-28 | D38: =+'Vista Principal'!D78 -> 5 | E38: =+'Vista Principal'!E78 -> 2027-05-28 | F38: =+'Vista Principal'!F78 -> 30 | G38: =+'Vista Principal'!G78 -> 1016 | H38: =+'Vista Principal'!H78 -> 41704.41812 | I38: =+'Vista Principal'!I78 -> 959.6273646 | J38: =+'Vista Principal'!J78 -> 332.5568866 | K38: =+'Vista Principal'!K78 -> 372.3091772 | L38: =+'Vista Principal'!L78 -> 0 | M38: =+'Vista Principal'!M78 -> 1664.493428 | N38: =+'Vista Principal'!N78 -> 40744.79076
B39: =+'Vista Principal'!B79 -> 32 | C39: =+'Vista Principal'!C79 -> 2027-06-28 | D39: =+'Vista Principal'!D79 -> 1 | E39: =+'Vista Principal'!E79 -> 2027-06-28 | F39: =+'Vista Principal'!F79 -> 31 | G39: =+'Vista Principal'!G79 -> 1047 | H39: =+'Vista Principal'!H79 -> 40744.79076 | I39: =+'Vista Principal'!I79 -> 956.4049061 | J39: =+'Vista Principal'!J79 -> 335.7793451 | K39: =+'Vista Principal'!K79 -> 372.3091772 | L39: =+'Vista Principal'!L79 -> 0 | M39: =+'Vista Principal'!M79 -> 1664.493428 | N39: =+'Vista Principal'!N79 -> 39788.38585
B40: =+'Vista Principal'!B80 -> 33 | C40: =+'Vista Principal'!C80 -> 2027-07-28 | D40: =+'Vista Principal'!D80 -> 3 | E40: =+'Vista Principal'!E80 -> 2027-07-28 | F40: =+'Vista Principal'!F80 -> 30 | G40: =+'Vista Principal'!G80 -> 1077 | H40: =+'Vista Principal'!H80 -> 39788.38585 | I40: =+'Vista Principal'!I80 -> 2639.399503 | J40: =+'Vista Principal'!J80 -> 317.2781762 | K40: =+'Vista Principal'!K80 -> 372.3091772 | L40: =+'Vista Principal'!L80 -> 0 | M40: =+'Vista Principal'!M80 -> 3328.986857 | N40: =+'Vista Principal'!N80 -> 37148.98635
B41: =+'Vista Principal'!B81 -> 34 | C41: =+'Vista Principal'!C81 -> 2027-08-28 | D41: =+'Vista Principal'!D81 -> 6 | E41: =+'Vista Principal'!E81 -> 2027-08-28 | F41: =+'Vista Principal'!F81 -> 31 | G41: =+'Vista Principal'!G81 -> 1108 | H41: =+'Vista Principal'!H81 -> 37148.98635 | I41: =+'Vista Principal'!I81 -> 986.0380648 | J41: =+'Vista Principal'!J81 -> 306.1461864 | K41: =+'Vista Principal'!K81 -> 372.3091772 | L41: =+'Vista Principal'!L81 -> 0 | M41: =+'Vista Principal'!M81 -> 1664.493428 | N41: =+'Vista Principal'!N81 -> 36162.94828
B42: =+'Vista Principal'!B82 -> 35 | C42: =+'Vista Principal'!C82 -> 2027-09-28 | D42: =+'Vista Principal'!D82 -> 2 | E42: =+'Vista Principal'!E82 -> 2027-09-28 | F42: =+'Vista Principal'!F82 -> 31 | G42: =+'Vista Principal'!G82 -> 1139 | H42: =+'Vista Principal'!H82 -> 36162.94828 | I42: =+'Vista Principal'!I82 -> 994.1640413 | J42: =+'Vista Principal'!J82 -> 298.0202098 | K42: =+'Vista Principal'!K82 -> 372.3091772 | L42: =+'Vista Principal'!L82 -> 0 | M42: =+'Vista Principal'!M82 -> 1664.493428 | N42: =+'Vista Principal'!N82 -> 35168.78424
B43: =+'Vista Principal'!B83 -> 36 | C43: =+'Vista Principal'!C83 -> 2027-10-28 | D43: =+'Vista Principal'!D83 -> 4 | E43: =+'Vista Principal'!E83 -> 2027-10-28 | F43: =+'Vista Principal'!F83 -> 30 | G43: =+'Vista Principal'!G83 -> 1169 | H43: =+'Vista Principal'!H83 -> 35168.78424 | I43: =+'Vista Principal'!I83 -> 1011.743427 | J43: =+'Vista Principal'!J83 -> 280.4408243 | K43: =+'Vista Principal'!K83 -> 372.3091772 | L43: =+'Vista Principal'!L83 -> 0 | M43: =+'Vista Principal'!M83 -> 1664.493428 | N43: =+'Vista Principal'!N83 -> 34157.04082
B44: =+'Vista Principal'!B84 -> 37 | C44: =+'Vista Principal'!C84 -> 2027-11-28 | D44: =+'Vista Principal'!D84 -> 7 | E44: =+'Vista Principal'!E84 -> 2027-11-29 | F44: =+'Vista Principal'!F84 -> 32 | G44: =+'Vista Principal'!G84 -> 1201 | H44: =+'Vista Principal'!H84 -> 34157.04082 | I44: =+'Vista Principal'!I84 -> 1001.575975 | J44: =+'Vista Principal'!J84 -> 290.6082765 | K44: =+'Vista Principal'!K84 -> 372.3091772 | L44: =+'Vista Principal'!L84 -> 0 | M44: =+'Vista Principal'!M84 -> 1664.493428 | N44: =+'Vista Principal'!N84 -> 33155.46484
B45: =+'Vista Principal'!B85 -> 38 | C45: =+'Vista Principal'!C85 -> 2027-12-28 | D45: =+'Vista Principal'!D85 -> 2 | E45: =+'Vista Principal'!E85 -> 2027-12-28 | F45: =+'Vista Principal'!F85 -> 29 | G45: =+'Vista Principal'!G85 -> 1230 | H45: =+'Vista Principal'!H85 -> 33155.46484 | I45: =+'Vista Principal'!I85 -> 2701.138098 | J45: =+'Vista Principal'!J85 -> 255.5395815 | K45: =+'Vista Principal'!K85 -> 372.3091772 | L45: =+'Vista Principal'!L85 -> 0 | M45: =+'Vista Principal'!M85 -> 3328.986857 | N45: =+'Vista Principal'!N85 -> 30454.32674
B46: =+'Vista Principal'!B86 -> 39 | C46: =+'Vista Principal'!C86 -> 2028-01-28 | D46: =+'Vista Principal'!D86 -> 5 | E46: =+'Vista Principal'!E86 -> 2028-01-28 | F46: =+'Vista Principal'!F86 -> 31 | G46: =+'Vista Principal'!G86 -> 1261 | H46: =+'Vista Principal'!H86 -> 30454.32674 | I46: =+'Vista Principal'!I86 -> 1041.209005 | J46: =+'Vista Principal'!J86 -> 250.9752461 | K46: =+'Vista Principal'!K86 -> 372.3091772 | L46: =+'Vista Principal'!L86 -> 0 | M46: =+'Vista Principal'!M86 -> 1664.493428 | N46: =+'Vista Principal'!N86 -> 29413.11774
B47: =+'Vista Principal'!B87 -> 40 | C47: =+'Vista Principal'!C87 -> 2028-02-28 | D47: =+'Vista Principal'!D87 -> 1 | E47: =+'Vista Principal'!E87 -> 2028-02-28 | F47: =+'Vista Principal'!F87 -> 31 | G47: =+'Vista Principal'!G87 -> 1292 | H47: =+'Vista Principal'!H87 -> 29413.11774 | I47: =+'Vista Principal'!I87 -> 1049.789647 | J47: =+'Vista Principal'!J87 -> 242.3946038 | K47: =+'Vista Principal'!K87 -> 372.3091772 | L47: =+'Vista Principal'!L87 -> 0 | M47: =+'Vista Principal'!M87 -> 1664.493428 | N47: =+'Vista Principal'!N87 -> 28363.32809
B48: =+'Vista Principal'!B88 -> 41 | C48: =+'Vista Principal'!C88 -> 2028-03-28 | D48: =+'Vista Principal'!D88 -> 2 | E48: =+'Vista Principal'!E88 -> 2028-03-28 | F48: =+'Vista Principal'!F88 -> 29 | G48: =+'Vista Principal'!G88 -> 1321 | H48: =+'Vista Principal'!H88 -> 28363.32809 | I48: =+'Vista Principal'!I88 -> 1073.579173 | J48: =+'Vista Principal'!J88 -> 218.6050784 | K48: =+'Vista Principal'!K88 -> 372.3091772 | L48: =+'Vista Principal'!L88 -> 0 | M48: =+'Vista Principal'!M88 -> 1664.493428 | N48: =+'Vista Principal'!N88 -> 27289.74892
B49: =+'Vista Principal'!B89 -> 42 | C49: =+'Vista Principal'!C89 -> 2028-04-28 | D49: =+'Vista Principal'!D89 -> 5 | E49: =+'Vista Principal'!E89 -> 2028-04-28 | F49: =+'Vista Principal'!F89 -> 31 | G49: =+'Vista Principal'!G89 -> 1352 | H49: =+'Vista Principal'!H89 -> 27289.74892 | I49: =+'Vista Principal'!I89 -> 1067.288409 | J49: =+'Vista Principal'!J89 -> 224.8958419 | K49: =+'Vista Principal'!K89 -> 372.3091772 | L49: =+'Vista Principal'!L89 -> 0 | M49: =+'Vista Principal'!M89 -> 1664.493428 | N49: =+'Vista Principal'!N89 -> 26222.46051
B50: =+'Vista Principal'!B90 -> 43 | C50: =+'Vista Principal'!C90 -> 2028-05-28 | D50: =+'Vista Principal'!D90 -> 7 | E50: =+'Vista Principal'!E90 -> 2028-05-29 | F50: =+'Vista Principal'!F90 -> 31 | G50: =+'Vista Principal'!G90 -> 1383 | H50: =+'Vista Principal'!H90 -> 26222.46051 | I50: =+'Vista Principal'!I90 -> 1076.083973 | J50: =+'Vista Principal'!J90 -> 216.1002782 | K50: =+'Vista Principal'!K90 -> 372.3091772 | L50: =+'Vista Principal'!L90 -> 0 | M50: =+'Vista Principal'!M90 -> 1664.493428 | N50: =+'Vista Principal'!N90 -> 25146.37654
B51: =+'Vista Principal'!B91 -> 44 | C51: =+'Vista Principal'!C91 -> 2028-06-28 | D51: =+'Vista Principal'!D91 -> 3 | E51: =+'Vista Principal'!E91 -> 2028-06-28 | F51: =+'Vista Principal'!F91 -> 30 | G51: =+'Vista Principal'!G91 -> 1413 | H51: =+'Vista Principal'!H91 -> 25146.37654 | I51: =+'Vista Principal'!I91 -> 1091.663513 | J51: =+'Vista Principal'!J91 -> 200.5207378 | K51: =+'Vista Principal'!K91 -> 372.3091772 | L51: =+'Vista Principal'!L91 -> 0 | M51: =+'Vista Principal'!M91 -> 1664.493428 | N51: =+'Vista Principal'!N91 -> 24054.71302
B52: =+'Vista Principal'!B92 -> 45 | C52: =+'Vista Principal'!C92 -> 2028-07-28 | D52: =+'Vista Principal'!D92 -> 5 | E52: =+'Vista Principal'!E92 -> 2028-07-28 | F52: =+'Vista Principal'!F92 -> 30 | G52: =+'Vista Principal'!G92 -> 1443 | H52: =+'Vista Principal'!H92 -> 24054.71302 | I52: =+'Vista Principal'!I92 -> 2764.86202 | J52: =+'Vista Principal'!J92 -> 191.8156596 | K52: =+'Vista Principal'!K92 -> 372.3091772 | L52: =+'Vista Principal'!L92 -> 0 | M52: =+'Vista Principal'!M92 -> 3328.986857 | N52: =+'Vista Principal'!N92 -> 21289.851
B53: =+'Vista Principal'!B93 -> 46 | C53: =+'Vista Principal'!C93 -> 2028-08-28 | D53: =+'Vista Principal'!D93 -> 1 | E53: =+'Vista Principal'!E93 -> 2028-08-28 | F53: =+'Vista Principal'!F93 -> 31 | G53: =+'Vista Principal'!G93 -> 1474 | H53: =+'Vista Principal'!H93 -> 21289.851 | I53: =+'Vista Principal'!I93 -> 1116.733793 | J53: =+'Vista Principal'!J93 -> 175.4504587 | K53: =+'Vista Principal'!K93 -> 372.3091772 | L53: =+'Vista Principal'!L93 -> 0 | M53: =+'Vista Principal'!M93 -> 1664.493428 | N53: =+'Vista Principal'!N93 -> 20173.11721
B54: =+'Vista Principal'!B94 -> 47 | C54: =+'Vista Principal'!C94 -> 2028-09-28 | D54: =+'Vista Principal'!D94 -> 4 | E54: =+'Vista Principal'!E94 -> 2028-09-28 | F54: =+'Vista Principal'!F94 -> 31 | G54: =+'Vista Principal'!G94 -> 1505 | H54: =+'Vista Principal'!H94 -> 20173.11721 | I54: =+'Vista Principal'!I94 -> 1125.936837 | J54: =+'Vista Principal'!J94 -> 166.2474137 | K54: =+'Vista Principal'!K94 -> 372.3091772 | L54: =+'Vista Principal'!L94 -> 0 | M54: =+'Vista Principal'!M94 -> 1664.493428 | N54: =+'Vista Principal'!N94 -> 19047.18037
B55: =+'Vista Principal'!B95 -> 48 | C55: =+'Vista Principal'!C95 -> 2028-10-28 | D55: =+'Vista Principal'!D95 -> 6 | E55: =+'Vista Principal'!E95 -> 2028-10-28 | F55: =+'Vista Principal'!F95 -> 30 | G55: =+'Vista Principal'!G95 -> 1535 | H55: =+'Vista Principal'!H95 -> 19047.18037 | I55: =+'Vista Principal'!I95 -> 1140.29936 | J55: =+'Vista Principal'!J95 -> 151.8848911 | K55: =+'Vista Principal'!K95 -> 372.3091772 | L55: =+'Vista Principal'!L95 -> 0 | M55: =+'Vista Principal'!M95 -> 1664.493428 | N55: =+'Vista Principal'!N95 -> 17906.88101
B56: =+'Vista Principal'!B96 -> 49 | C56: =+'Vista Principal'!C96 -> 2028-11-28 | D56: =+'Vista Principal'!D96 -> 2 | E56: =+'Vista Principal'!E96 -> 2028-11-28 | F56: =+'Vista Principal'!F96 -> 31 | G56: =+'Vista Principal'!G96 -> 1566 | H56: =+'Vista Principal'!H96 -> 17906.88101 | I56: =+'Vista Principal'!I96 -> 1144.612975 | J56: =+'Vista Principal'!J96 -> 147.5712764 | K56: =+'Vista Principal'!K96 -> 372.3091772 | L56: =+'Vista Principal'!L96 -> 0 | M56: =+'Vista Principal'!M96 -> 1664.493428 | N56: =+'Vista Principal'!N96 -> 16762.26804
B57: =+'Vista Principal'!B97 -> 50 | C57: =+'Vista Principal'!C97 -> 2028-12-28 | D57: =+'Vista Principal'!D97 -> 4 | E57: =+'Vista Principal'!E97 -> 2028-12-28 | F57: =+'Vista Principal'!F97 -> 30 | G57: =+'Vista Principal'!G97 -> 1596 | H57: =+'Vista Principal'!H97 -> 16762.26804 | I57: =+'Vista Principal'!I97 -> 2823.013 | J57: =+'Vista Principal'!J97 -> 133.6646792 | K57: =+'Vista Principal'!K97 -> 372.3091772 | L57: =+'Vista Principal'!L97 -> 0 | M57: =+'Vista Principal'!M97 -> 3328.986857 | N57: =+'Vista Principal'!N97 -> 13939.25504
B58: =+'Vista Principal'!B98 -> 51 | C58: =+'Vista Principal'!C98 -> 2029-01-28 | D58: =+'Vista Principal'!D98 -> 7 | E58: =+'Vista Principal'!E98 -> 2029-01-29 | F58: =+'Vista Principal'!F98 -> 32 | G58: =+'Vista Principal'!G98 -> 1628 | H58: =+'Vista Principal'!H98 -> 13939.25504 | I58: =+'Vista Principal'!I98 -> 1173.588999 | J58: =+'Vista Principal'!J98 -> 118.5952525 | K58: =+'Vista Principal'!K98 -> 372.3091772 | L58: =+'Vista Principal'!L98 -> 0 | M58: =+'Vista Principal'!M98 -> 1664.493428 | N58: =+'Vista Principal'!N98 -> 12765.66604
B59: =+'Vista Principal'!B99 -> 52 | C59: =+'Vista Principal'!C99 -> 2029-02-28 | D59: =+'Vista Principal'!D99 -> 3 | E59: =+'Vista Principal'!E99 -> 2029-02-28 | F59: =+'Vista Principal'!F99 -> 30 | G59: =+'Vista Principal'!G99 -> 1658 | H59: =+'Vista Principal'!H99 -> 12765.66604 | I59: =+'Vista Principal'!I99 -> 1190.389038 | J59: =+'Vista Principal'!J99 -> 101.7952137 | K59: =+'Vista Principal'!K99 -> 372.3091772 | L59: =+'Vista Principal'!L99 -> 0 | M59: =+'Vista Principal'!M99 -> 1664.493428 | N59: =+'Vista Principal'!N99 -> 11575.277
B60: =+'Vista Principal'!B100 -> 53 | C60: =+'Vista Principal'!C100 -> 2029-03-28 | D60: =+'Vista Principal'!D100 -> 3 | E60: =+'Vista Principal'!E100 -> 2029-03-28 | F60: =+'Vista Principal'!F100 -> 28 | G60: =+'Vista Principal'!G100 -> 1686 | H60: =+'Vista Principal'!H100 -> 11575.277 | I60: =+'Vista Principal'!I100 -> 1206.057727 | J60: =+'Vista Principal'!J100 -> 86.12652444 | K60: =+'Vista Principal'!K100 -> 372.3091772 | L60: =+'Vista Principal'!L100 -> 0 | M60: =+'Vista Principal'!M100 -> 1664.493428 | N60: =+'Vista Principal'!N100 -> 10369.21927
B61: =+'Vista Principal'!B101 -> 54 | C61: =+'Vista Principal'!C101 -> 2029-04-28 | D61: =+'Vista Principal'!D101 -> 6 | E61: =+'Vista Principal'!E101 -> 2029-04-28 | F61: =+'Vista Principal'!F101 -> 31 | G61: =+'Vista Principal'!G101 -> 1717 | H61: =+'Vista Principal'!H101 -> 10369.21927 | I61: =+'Vista Principal'!I101 -> 1206.731127 | J61: =+'Vista Principal'!J101 -> 85.453124 | K61: =+'Vista Principal'!K101 -> 372.3091772 | L61: =+'Vista Principal'!L101 -> 0 | M61: =+'Vista Principal'!M101 -> 1664.493428 | N61: =+'Vista Principal'!N101 -> 9162.488147
B62: =+'Vista Principal'!B102 -> 55 | C62: =+'Vista Principal'!C102 -> 2029-05-28 | D62: =+'Vista Principal'!D102 -> 1 | E62: =+'Vista Principal'!E102 -> 2029-05-28 | F62: =+'Vista Principal'!F102 -> 30 | G62: =+'Vista Principal'!G102 -> 1747 | H62: =+'Vista Principal'!H102 -> 9162.488147 | I62: =+'Vista Principal'!I102 -> 1219.121284 | J62: =+'Vista Principal'!J102 -> 73.06296716 | K62: =+'Vista Principal'!K102 -> 372.3091772 | L62: =+'Vista Principal'!L102 -> 0 | M62: =+'Vista Principal'!M102 -> 1664.493428 | N62: =+'Vista Principal'!N102 -> 7943.366863
B63: =+'Vista Principal'!B103 -> 56 | C63: =+'Vista Principal'!C103 -> 2029-06-28 | D63: =+'Vista Principal'!D103 -> 4 | E63: =+'Vista Principal'!E103 -> 2029-06-28 | F63: =+'Vista Principal'!F103 -> 31 | G63: =+'Vista Principal'!G103 -> 1778 | H63: =+'Vista Principal'!H103 -> 7943.366863 | I63: =+'Vista Principal'!I103 -> 1226.722668 | J63: =+'Vista Principal'!J103 -> 65.46158352 | K63: =+'Vista Principal'!K103 -> 372.3091772 | L63: =+'Vista Principal'!L103 -> 0 | M63: =+'Vista Principal'!M103 -> 1664.493428 | N63: =+'Vista Principal'!N103 -> 6716.644195
B64: =+'Vista Principal'!B104 -> 57 | C64: =+'Vista Principal'!C104 -> 2029-07-28 | D64: =+'Vista Principal'!D104 -> 6 | E64: =+'Vista Principal'!E104 -> 2029-07-28 | F64: =+'Vista Principal'!F104 -> 30 | G64: =+'Vista Principal'!G104 -> 1808 | H64: =+'Vista Principal'!H104 -> 6716.644195 | I64: =+'Vista Principal'!I104 -> 2903.118216 | J64: =+'Vista Principal'!J104 -> 53.55946402 | K64: =+'Vista Principal'!K104 -> 372.3091772 | L64: =+'Vista Principal'!L104 -> 0 | M64: =+'Vista Principal'!M104 -> 3328.986857 | N64: =+'Vista Principal'!N104 -> 3813.52598
B65: =+'Vista Principal'!B105 -> 58 | C65: =+'Vista Principal'!C105 -> 2029-08-28 | D65: =+'Vista Principal'!D105 -> 2 | E65: =+'Vista Principal'!E105 -> 2029-08-28 | F65: =+'Vista Principal'!F105 -> 31 | G65: =+'Vista Principal'!G105 -> 1839 | H65: =+'Vista Principal'!H105 -> 3813.52598 | I65: =+'Vista Principal'!I105 -> 1260.756841 | J65: =+'Vista Principal'!J105 -> 31.42741028 | K65: =+'Vista Principal'!K105 -> 372.3091772 | L65: =+'Vista Principal'!L105 -> 0 | M65: =+'Vista Principal'!M105 -> 1664.493428 | N65: =+'Vista Principal'!N105 -> 2552.769139
B66: =+'Vista Principal'!B106 -> 59 | C66: =+'Vista Principal'!C106 -> 2029-09-28 | D66: =+'Vista Principal'!D106 -> 5 | E66: =+'Vista Principal'!E106 -> 2029-09-28 | F66: =+'Vista Principal'!F106 -> 31 | G66: =+'Vista Principal'!G106 -> 1870 | H66: =+'Vista Principal'!H106 -> 2552.769139 | I66: =+'Vista Principal'!I106 -> 1271.146785 | J66: =+'Vista Principal'!J106 -> 21.03746598 | K66: =+'Vista Principal'!K106 -> 372.3091772 | L66: =+'Vista Principal'!L106 -> 0 | M66: =+'Vista Principal'!M106 -> 1664.493428 | N66: =+'Vista Principal'!N106 -> 1281.622353
B67: =+'Vista Principal'!B107 -> 60 | C67: =+'Vista Principal'!C107 -> 2029-10-28 | D67: =+'Vista Principal'!D107 -> 7 | E67: =+'Vista Principal'!E107 -> 2029-10-29 | F67: =+'Vista Principal'!F107 -> 31 | G67: =+'Vista Principal'!G107 -> 1901 | H67: =+'Vista Principal'!H107 -> 1281.622353 | I67: =+'Vista Principal'!I107 -> 1281.622353 | J67: =+'Vista Principal'!J107 -> 10.56189777 | K67: =+'Vista Principal'!K107 -> 372.3091772 | L67: =+'Vista Principal'!L107 -> 0 | M67: =+'Vista Principal'!M107 -> 1664.493428 | N67: =+'Vista Principal'!N107 -> 0
B68: =+'Vista Principal'!B108 -> 61 | C68: =+'Vista Principal'!C108 ->  | D68: =+'Vista Principal'!D108 ->  | E68: =+'Vista Principal'!E108 ->  | F68: =+'Vista Principal'!F108 ->  | G68: =+'Vista Principal'!G108 ->  | H68: =+'Vista Principal'!H108 ->  | I68: =+'Vista Principal'!I108 ->  | J68: =+'Vista Principal'!J108 ->  | K68: =+'Vista Principal'!K108 ->  | L68: =+'Vista Principal'!L108 ->  | M68: =+'Vista Principal'!M108 ->  | N68: =+'Vista Principal'!N108 -> 
B69: =+'Vista Principal'!B109 -> 62 | C69: =+'Vista Principal'!C109 ->  | D69: =+'Vista Principal'!D109 ->  | E69: =+'Vista Principal'!E109 ->  | F69: =+'Vista Principal'!F109 ->  | G69: =+'Vista Principal'!G109 ->  | H69: =+'Vista Principal'!H109 ->  | I69: =+'Vista Principal'!I109 ->  | J69: =+'Vista Principal'!J109 ->  | K69: =+'Vista Principal'!K109 ->  | L69: =+'Vista Principal'!L109 ->  | M69: =+'Vista Principal'!M109 ->  | N69: =+'Vista Principal'!N109 -> 
B70: =+'Vista Principal'!B110 -> 63 | C70: =+'Vista Principal'!C110 ->  | D70: =+'Vista Principal'!D110 ->  | E70: =+'Vista Principal'!E110 ->  | F70: =+'Vista Principal'!F110 ->  | G70: =+'Vista Principal'!G110 ->  | H70: =+'Vista Principal'!H110 ->  | I70: =+'Vista Principal'!I110 ->  | J70: =+'Vista Principal'!J110 ->  | K70: =+'Vista Principal'!K110 ->  | L70: =+'Vista Principal'!L110 ->  | M70: =+'Vista Principal'!M110 ->  | N70: =+'Vista Principal'!N110 -> 
B71: =+'Vista Principal'!B111 -> 64 | C71: =+'Vista Principal'!C111 ->  | D71: =+'Vista Principal'!D111 ->  | E71: =+'Vista Principal'!E111 ->  | F71: =+'Vista Principal'!F111 ->  | G71: =+'Vista Principal'!G111 ->  | H71: =+'Vista Principal'!H111 ->  | I71: =+'Vista Principal'!I111 ->  | J71: =+'Vista Principal'!J111 ->  | K71: =+'Vista Principal'!K111 ->  | L71: =+'Vista Principal'!L111 ->  | M71: =+'Vista Principal'!M111 ->  | N71: =+'Vista Principal'!N111 -> 
B72: =+'Vista Principal'!B112 -> 65 | C72: =+'Vista Principal'!C112 ->  | D72: =+'Vista Principal'!D112 ->  | E72: =+'Vista Principal'!E112 ->  | F72: =+'Vista Principal'!F112 ->  | G72: =+'Vista Principal'!G112 ->  | H72: =+'Vista Principal'!H112 ->  | I72: =+'Vista Principal'!I112 ->  | J72: =+'Vista Principal'!J112 ->  | K72: =+'Vista Principal'!K112 ->  | L72: =+'Vista Principal'!L112 ->  | M72: =+'Vista Principal'!M112 ->  | N72: =+'Vista Principal'!N112 -> 
B73: =+'Vista Principal'!B113 -> 66 | C73: =+'Vista Principal'!C113 ->  | D73: =+'Vista Principal'!D113 ->  | E73: =+'Vista Principal'!E113 ->  | F73: =+'Vista Principal'!F113 ->  | G73: =+'Vista Principal'!G113 ->  | H73: =+'Vista Principal'!H113 ->  | I73: =+'Vista Principal'!I113 ->  | J73: =+'Vista Principal'!J113 ->  | K73: =+'Vista Principal'!K113 ->  | L73: =+'Vista Principal'!L113 ->  | M73: =+'Vista Principal'!M113 ->  | N73: =+'Vista Principal'!N113 -> 
B74: =+'Vista Principal'!B114 -> 67 | C74: =+'Vista Principal'!C114 ->  | D74: =+'Vista Principal'!D114 ->  | E74: =+'Vista Principal'!E114 ->  | F74: =+'Vista Principal'!F114 ->  | G74: =+'Vista Principal'!G114 ->  | H74: =+'Vista Principal'!H114 ->  | I74: =+'Vista Principal'!I114 ->  | J74: =+'Vista Principal'!J114 ->  | K74: =+'Vista Principal'!K114 ->  | L74: =+'Vista Principal'!L114 ->  | M74: =+'Vista Principal'!M114 ->  | N74: =+'Vista Principal'!N114 -> 
B75: =+'Vista Principal'!B115 -> 68 | C75: =+'Vista Principal'!C115 ->  | D75: =+'Vista Principal'!D115 ->  | E75: =+'Vista Principal'!E115 ->  | F75: =+'Vista Principal'!F115 ->  | G75: =+'Vista Principal'!G115 ->  | H75: =+'Vista Principal'!H115 ->  | I75: =+'Vista Principal'!I115 ->  | J75: =+'Vista Principal'!J115 ->  | K75: =+'Vista Principal'!K115 ->  | L75: =+'Vista Principal'!L115 ->  | M75: =+'Vista Principal'!M115 ->  | N75: =+'Vista Principal'!N115 -> 
B76: =+'Vista Principal'!B116 -> 69 | C76: =+'Vista Principal'!C116 ->  | D76: =+'Vista Principal'!D116 ->  | E76: =+'Vista Principal'!E116 ->  | F76: =+'Vista Principal'!F116 ->  | G76: =+'Vista Principal'!G116 ->  | H76: =+'Vista Principal'!H116 ->  | I76: =+'Vista Principal'!I116 ->  | J76: =+'Vista Principal'!J116 ->  | K76: =+'Vista Principal'!K116 ->  | L76: =+'Vista Principal'!L116 ->  | M76: =+'Vista Principal'!M116 ->  | N76: =+'Vista Principal'!N116 -> 
B77: =+'Vista Principal'!B117 -> 70 | C77: =+'Vista Principal'!C117 ->  | D77: =+'Vista Principal'!D117 ->  | E77: =+'Vista Principal'!E117 ->  | F77: =+'Vista Principal'!F117 ->  | G77: =+'Vista Principal'!G117 ->  | H77: =+'Vista Principal'!H117 ->  | I77: =+'Vista Principal'!I117 ->  | J77: =+'Vista Principal'!J117 ->  | K77: =+'Vista Principal'!K117 ->  | L77: =+'Vista Principal'!L117 ->  | M77: =+'Vista Principal'!M117 ->  | N77: =+'Vista Principal'!N117 -> 
B78: =+'Vista Principal'!B118 -> 71 | C78: =+'Vista Principal'!C118 ->  | D78: =+'Vista Principal'!D118 ->  | E78: =+'Vista Principal'!E118 ->  | F78: =+'Vista Principal'!F118 ->  | G78: =+'Vista Principal'!G118 ->  | H78: =+'Vista Principal'!H118 ->  | I78: =+'Vista Principal'!I118 ->  | J78: =+'Vista Principal'!J118 ->  | K78: =+'Vista Principal'!K118 ->  | L78: =+'Vista Principal'!L118 ->  | M78: =+'Vista Principal'!M118 ->  | N78: =+'Vista Principal'!N118 -> 
B79: =+'Vista Principal'!B119 -> 72 | C79: =+'Vista Principal'!C119 ->  | D79: =+'Vista Principal'!D119 ->  | E79: =+'Vista Principal'!E119 ->  | F79: =+'Vista Principal'!F119 ->  | G79: =+'Vista Principal'!G119 ->  | H79: =+'Vista Principal'!H119 ->  | I79: =+'Vista Principal'!I119 ->  | J79: =+'Vista Principal'!J119 ->  | K79: =+'Vista Principal'!K119 ->  | L79: =+'Vista Principal'!L119 ->  | M79: =+'Vista Principal'!M119 ->  | N79: =+'Vista Principal'!N119 -> 

Sheet RCI (hidden)
A5: Cuotas de Reporte de Deuda | E5: Tipo de Cuota simulada | H5: Cálculo de RCI
A6: Ingresar datos de cuotas de reporte de ISTS | E6: Ingresar dato de Ingreso Neto del cliente de ISTS
B8: Importe Cuota 1 | C8: 1,978.00 | E8: TIPO DE CUOTA | F8: =+'Vista Principal'!C11 -> TARIFA TITULAR | H8: RCI estimado | I8: =(C14+F9)/F13 -> 60.71%
B9: Importe Cuota 2 | C9: 0.00 | E9: VALOR CUOTA | F9: =+'Vista Principal'!C37 -> 1664.493428
B10: Importe Cuota 3 | C10: 0.00
B11: Importe Cuota 4 | C11: 0.00 | E11: Ingreso Neto del Cliente
B12: Importe Cuota 5 | C12: 0.00 | E12: Ingresar dato de Ingreso Neto del cliente de ISTS
B13: Importe Cuota 6 | C13: 0.00 | E13: INGRESO NETO DEL CLIENTE | F13: 6,000.00
B14: TOTAL CUOTAS | C14: =SUM(C8:C13) -> 1,978.00

Sheet Proceso Prima de Seguro (hidden)
D2: Proceso de Cálculo de la Prima de Seguros
B7: 1) Datos esenciales del préstamo | G7: 3) Calculo del valor presente del Seguro
B9: Producto | D9: ='Vista Principal'!C9 -> Préstamos Vehiculares (Clientes) | G9: Suma de Prima Mensual | H9: =SUM(L36:L395) -> 105,793.89
B10: Tipo de Seguro | D10: ='Vista Principal'!C10 -> Seguro de Vida | G10: VPN - Valor Presente | H10: =NPV(D16,L36:L395) -> 99,288.07
B11: Tarifa | D11: ='Vista Principal'!C11 -> TARIFA TITULAR
B12: Monto inicial | D12: ='Vista Principal'!C15 -> 70,813.71 | G12: 4) Calculo del Monto Adicional del Seguro y MAF
B13: =D10 -> Seguro de Vida | C13: =+CONCATENATE(D11,D9,D10) -> TARIFA TITULARPréstamos Vehiculares (Clientes)Seguro de Vida | D13: =VLOOKUP(C13,capuccinomoreno,2,0) -> 3.1400%
B14: Monto adicional Seguro de Desgravamen/ Vida | G14: Monto inicial | H14: =D12 -> 70,813.71
B15: MAF Inicial | D15: =D12+D14 -> 70,814 | G15: Monto adicional de Desgravamen / Vida | H15: =H10 -> 99,288.07
B16: Costo Capital | D16: =INDEX(_xlfn._xlws.FILTER(Tabla2[],Tabla2[TARIFA]=D11),0,2) -> 0.2871% | G16: Prima de Seguro de Desgravamen / Vida | H16: =H15/H14 -> 140.2102%
B17: Moneda | D17: ='Vista Principal'!C24 -> Soles | G17: MAF Inicial | H17: =H14+H15 -> 170,101.78
B18: Plazo Remanente Meses | D18: ='Vista Principal'!C25 -> 60
B19: Fecha de Desembolso | D19: ='Vista Principal'!C27 -> 2024-08-15
B20: Fecha de 1er Pago | D20: ='Vista Principal'!C28 -> 2024-11-30
B21: Cuota Julio | D21: ='Vista Principal'!C29 -> 2
B22: Cuota Diciembre | D22: ='Vista Principal'!C30 -> 2
B23: TEA | D23: ='Vista Principal'!C31 -> 10.00%
B24: TEA TOTAL | D24: =(1+(((1+D23)^(30/360)-1)+D13))^12-1 -> 58.95%
B25: Monto del Bien | D25: =+'Vista Principal'!C33 -> 108,103.71
B26: Seguro del Bien | D26: =+'Vista Principal'!C35 -> 0.3444%
B27: Portes | D27: 0
B28: Cuota | D28: =(D15+(D26*D25+D27)*R34)/Q34 -> 3,249.61
B30: TCEA | D30: 18.90%
W31: =D15-W34-D14 -> -73,850.47
B33: 2) Creación de Cronograma de prima mensual
Q34: =SUM(Q36:Q395) -> 24.15 | R34: =SUM(R36:R395) -> 20.58 | W34: =SUM(W36:W395) -> 144,664.18
B35: N° Cuota | D35: Fecha de pago | E35: Día | F35: Fecha de pago | G35: Días | H35: Dias Acumulados | I35: Saldo Inicial | J35: Amortización | K35: Interés | L35: Seguro Desgravamen | M35: Seguro del Bien | N35: Portes | O35: Cuota Constante | P35: Saldo Final | Q35: Factor Cronograma | R35: Factor Cronograma 2 | T35: Vector i,1 Cuota | U35: Vector i,2 Días Acum | V35: Vector i,3 Factor | W35: Vector i,4 Calculo VA | X35: VPN - Valor Presente | Y35: VPN - Valor Presente
B36: 1 | D36: =D20 -> 2024-11-30 | E36: =IF(B36<=$D$18,WEEKDAY(D36,2),"") -> 6 | F36: =IF(E36=7,D36+1,D36) -> 2024-11-30 | G36: =F36-D19 -> 107 | H36: =G36 -> 107 | I36: =D15 -> 70,813.71 | J36: =IF(B36>D$18,"",O36-N36-M36-L36-K36) -> -7,412.92 | K36: =IF(B36>D$18,"",((1+D$23)^(G36/360)-1)*I36) -> 2,034.72 | L36: =IF(B36>D$18,"",((1+D$13)^(G36/30)-1)*I36) -> 8,255.51 | M36: =IF(B36>D$18,"",D$25*D$26) -> 372.31 | N36: =IF(B36>D$18,"",D$27) -> 0 | O36: =IF(B36>D$18,"",IF(B36=D$18,I36+K36+L36+M36+N36,IF(AND(D$21=2,MONTH(F36)=7),2*D$28,IF(AND(D$22=2,MONTH(F36)=12),2*D$28,D$28)))) -> 3,249.61 | P36: =IF(B36>D$18,"",I36-J36) -> 78,226.63 | Q36: =IFERROR(IF(AND(MONTH(F36)=7,D$21=2),2/(1+D$24)^(H36/360),IF(AND(MONTH(F36)=12,D$22=2),2/(1+D$24)^(H36/360),1/(1+D$24)^(H36/360))),"") -> 0.87 | R36: =IFERROR(1/(1+D$24)^(H36/360),"") -> 0.87 | T36: =IFERROR(J36+K36+L36+M36+N36,"") -> 3249.614626 | U36: =H36 -> 107 | V36: =IFERROR((1+D$30)^(U36/360),"") -> 1.05 | W36: =IFERROR(ROUND(T36/V36,2),"") -> 3,086.68 | X36: =L36/(1+$I$9) -> 8,255.51 | Y36: =L36/(1+$Q$28) -> 8,255.51
B37: 2 | D37: =IF(B37>$D$18,"",EDATE(D36,1)) -> 2024-12-30 | E37: 1 | F37: =IF(E37=7,D37+1,D37) -> 2024-12-30 | G37: =IF(B37>D$18,"",F37-F36) -> 30 | H37: =IFERROR(G37+H36,"") -> 137 | I37: =IF(B37>D$18,"",P36) -> 78,226.63 | J37: 3,046.81 | K37: 623.79 | L37: 2,456.32 | M37: 372.31 | N37: 0 | O37: 6,499.23 | P37: 75,179.81 | Q37: 1.68 | R37: 0.84 | T37: 6499.229252 | U37: 137 | V37: 1.07 | W37: 6,084.95 | X37: =IF(O37="",0,L37/((1+$I$9)^B37)) -> 2,456.32 | Y37: =IF(O37="",0,L37/((1+$Q$28)^B37)) -> 2,456.32
B38: 3 | D38: 2025-01-30 | E38: 4 | F38: 2025-01-30 | G38: 31 | H38: 168 | I38: 75,179.81 | J38: -182.85 | K38: 619.56 | L38: 2,440.60 | M38: 372.31 | N38: 0 | O38: 3,249.61 | P38: 75,362.67 | Q38: 0.81 | R38: 0.81 | T38: 3249.614626 | U38: 168 | V38: 1.08 | W38: 2,997.47 | X38: 2,440.60 | Y38: 2,440.60
B39: 4 | D39: 2025-02-28 | E39: 5 | F39: 2025-02-28 | G39: 29 | H39: 197 | I39: 75,362.67 | J39: 10.14 | K39: 580.84 | L39: 2,286.32 | M39: 372.31 | N39: 0 | O39: 3,249.61 | P39: 75,352.53 | Q39: 0.78 | R39: 0.78 | T39: 3249.614626 | U39: 197 | V39: 1.10 | W39: 2,955.97 | X39: 2,286.32 | Y39: 2,286.32
B40: 5 | D40: 2025-03-28 | E40: 5 | F40: 2025-03-28 | G40: 28 | H40: 225 | I40: 75,352.53 | J40: 110.60 | K40: 560.66 | L40: 2,206.05 | M40: 372.31 | N40: 0 | O40: 3,249.61 | P40: 75,241.93 | Q40: 0.75 | R40: 0.75 | T40: 3249.614626 | U40: 225 | V40: 1.11 | W40: 2,916.44 | X40: 2,206.05 | Y40: 2,206.05
B41: 6 | D41: 2025-04-28 | E41: 1 | F41: 2025-04-28 | G41: 31 | H41: 256 | I41: 75,241.93 | J41: -185.38 | K41: 620.07 | L41: 2,442.61 | M41: 372.31 | N41: 0 | O41: 3,249.61 | P41: 75,427.31 | Q41: 0.72 | R41: 0.72 | T41: 3249.614626 | U41: 256 | V41: 1.13 | W41: 2,873.30 | X41: 2,442.61 | Y41: 2,442.61
B42: 7 | D42: 2025-05-28 | E42: 3 | F42: 2025-05-28 | G42: 30 | H42: 286 | I42: 75,427.31 | J42: -92.58 | K42: 601.47 | L42: 2,368.42 | M42: 372.31 | N42: 0 | O42: 3,249.61 | P42: 75,519.89 | Q42: 0.69 | R42: 0.69 | T42: 3249.614626 | U42: 286 | V42: 1.15 | W42: 2,832.16 | X42: 2,368.42 | Y42: 2,368.42
B43: 8 | D43: 2025-06-28 | E43: 6 | F43: 2025-06-28 | G43: 31 | H43: 317 | I43: 75,519.89 | J43: -196.70 | K43: 622.36 | L43: 2,451.64 | M43: 372.31 | N43: 0 | O43: 3,249.61 | P43: 75,716.59 | Q43: 0.66 | R43: 0.66 | T43: 3249.614626 | U43: 317 | V43: 1.16 | W43: 2,790.26 | X43: 2,451.64 | Y43: 2,451.64
B44: 9 | D44: 2025-07-28 | E44: 1 | F44: 2025-07-28 | G44: 30 | H44: 347 | I44: 75,716.59 | J44: 3,145.64 | K44: 603.77 | L44: 2,377.50 | M44: 372.31 | N44: 0 | O44: 6,499.23 | P44: 72,570.94 | Q44: 1.28 | R44: 0.64 | T44: 6499.229252 | U44: 347 | V44: 1.18 | W44: 5,500.61 | X44: 2,377.50 | Y44: 2,377.50
B45: 10 | D45: 2025-08-28 | E45: 4 | F45: 2025-08-28 | G45: 31 | H45: 378 | I45: 72,570.94 | J45: -76.66 | K45: 598.06 | L45: 2,355.91 | M45: 372.31 | N45: 0 | O45: 3,249.61 | P45: 72,647.60 | Q45: 0.61 | R45: 0.61 | T45: 3249.614626 | U45: 378 | V45: 1.20 | W45: 2,709.62 | X45: 2,355.91 | Y45: 2,355.91
B46: 11 | D46: 2025-09-28 | E46: 7 | F46: 2025-09-29 | G46: 32 | H46: 410 | I46: 72,647.60 | J46: -176.51 | K46: 618.09 | L46: 2,435.73 | M46: 372.31 | N46: 0 | O46: 3,249.61 | P46: 72,824.12 | Q46: 0.59 | R46: 0.59 | T46: 3249.614626 | U46: 410 | V46: 1.22 | W46: 2,668.25 | X46: 2,435.73 | Y46: 2,435.73
B47: 12 | D47: 2025-10-28 | E47: 2 | F47: 2025-10-28 | G47: 29 | H47: 439 | I47: 72,824.12 | J47: 106.72 | K47: 561.28 | L47: 2,209.31 | M47: 372.31 | N47: 0 | O47: 3,249.61 | P47: 72,717.40 | Q47: 0.57 | R47: 0.57 | T47: 3249.614626 | U47: 439 | V47: 1.23 | W47: 2,631.31 | X47: 2,209.31 | Y47: 2,209.31
B48: 13 | D48: 2025-11-28 | E48: 5 | F48: 2025-11-28 | G48: 31 | H48: 470 | I48: =IF(B48>D$18,"",P47) -> 72,717.40 | J48: =IF(B48>D$18,"",O48-N48-M48-L48-K48) -> -82.62 | K48: 599.27 | L48: 2,360.66 | M48: 372.31 | N48: 0 | O48: 3,249.61 | P48: =IF(B48>D$18,"",I48-J48) -> 72,800.02 | Q48: 0.55 | R48: 0.55 | T48: =IFERROR(J48+K48+L48+M48+N48,"") -> 3249.614626 | U48: 470 | V48: 1.25 | W48: 2,592.38 | X48: 2,360.66 | Y48: =IF(O48="",0,L48/((1+$Q$28)^B48)) -> 2,360.66
B49: 14 | D49: 2025-12-28 | E49: 7 | F49: 2025-12-29 | G49: 31 | H49: 501 | I49: 72,800.02 | J49: 3,163.63 | K49: 599.95 | L49: 2,363.34 | M49: 372.31 | N49: 0 | O49: 6,499.23 | P49: 69,636.39 | Q49: 1.05 | R49: 0.52 | T49: 6499.229252 | U49: 501 | V49: 1.27 | W49: 5,108.07 | X49: 2,363.34 | Y49: 2,363.34
B50: 15 | D50: 2026-01-28 | E50: 3 | F50: 2026-01-28 | G50: 30 | H50: 531 | I50: 69,636.39 | J50: 135.43 | K50: 555.29 | L50: 2,186.58 | M50: 372.31 | N50: 0 | O50: 3,249.61 | P50: 69,500.96 | Q50: 0.50 | R50: 0.50 | T50: 3249.614626 | U50: 531 | V50: 1.29 | W50: 2,517.46 | X50: 2,186.58 | Y50: 2,186.58
B51: 16 | D51: 2026-02-28 | E51: 6 | F51: 2026-02-28 | G51: 31 | H51: 562 | I51: 69,500.96 | J51: 48.30 | K51: 572.76 | L51: 2,256.24 | M51: 372.31 | N51: 0 | O51: 3,249.61 | P51: 69,452.66 | Q51: 0.49 | R51: 0.49 | T51: 3249.614626 | U51: 562 | V51: 1.31 | W51: 2,480.22 | X51: 2,256.24 | Y51: 2,256.24
B52: 17 | D52: 2026-03-28 | E52: 6 | F52: 2026-03-28 | G52: 28 | H52: 590 | I52: 69,452.66 | J52: 327.22 | K52: 516.77 | L52: 2,033.32 | M52: 372.31 | N52: 0 | O52: 3,249.61 | P52: 69,125.44 | Q52: 0.47 | R52: 0.47 | T52: 3249.614626 | U52: 590 | V52: 1.33 | W52: 2,447.06 | X52: 2,033.32 | Y52: 2,033.32
B53: 18 | D53: 2026-04-28 | E53: 2 | F53: 2026-04-28 | G53: 31 | H53: 621 | I53: 69,125.44 | J53: 63.59 | K53: 569.67 | L53: 2,244.05 | M53: 372.31 | N53: 0 | O53: 3,249.61 | P53: 69,061.85 | Q53: 0.45 | R53: 0.45 | T53: 3249.614626 | U53: 621 | V53: 1.35 | W53: 2,410.86 | X53: 2,244.05 | Y53: 2,244.05
B54: 19 | D54: 2026-05-28 | E54: 4 | F54: 2026-05-28 | G54: 30 | H54: 651 | I54: 69,061.85 | J54: 158.05 | K54: 550.71 | L54: 2,168.54 | M54: 372.31 | N54: 0 | O54: 3,249.61 | P54: 68,903.79 | Q54: 0.43 | R54: 0.43 | T54: 3249.614626 | U54: 651 | V54: 1.37 | W54: 2,376.34 | X54: 2,168.54 | Y54: 2,168.54
B55: 20 | D55: 2026-06-28 | E55: 7 | F55: 2026-06-29 | G55: 32 | H55: 683 | I55: 68,903.79 | J55: -19.14 | K55: 586.23 | L55: 2,310.21 | M55: 372.31 | N55: 0 | O55: 3,249.61 | P55: 68,922.93 | Q55: 0.42 | R55: 0.42 | T55: 3249.614626 | U55: 683 | V55: 1.39 | W55: 2,340.06 | X55: 2,310.21 | Y55: 2,310.21
B56: 21 | D56: 2026-07-28 | E56: 2 | F56: 2026-07-28 | G56: 29 | H56: 712 | I56: 68,922.93 | J56: 3,504.75 | K56: 531.21 | L56: 2,090.96 | M56: 372.31 | N56: 0 | O56: 6,499.23 | P56: 65,418.18 | Q56: 0.80 | R56: 0.40 | T56: 6499.229252 | U56: 712 | V56: 1.41 | W56: 4,615.32 | X56: 2,090.96 | Y56: 2,090.96
B57: 22 | D57: 2026-08-28 | E57: 5 | F57: 2026-08-28 | G57: 31 | H57: 743 | I57: 65,418.18 | J57: 214.49 | K57: 539.11 | L57: 2,123.70 | M57: 372.31 | N57: 0 | O57: 3,249.61 | P57: 65,203.69 | Q57: 0.38 | R57: 0.38 | T57: 3249.614626 | U57: 743 | V57: 1.43 | W57: 2,273.52 | X57: 2,123.70 | Y57: 2,123.70
B58: 23 | D58: 2026-09-28 | E58: 1 | F58: 2026-09-28 | G58: 31 | H58: 774 | I58: 65,203.69 | J58: 223.22 | K58: 537.35 | L58: 2,116.74 | M58: 372.31 | N58: 0 | O58: 3,249.61 | P58: 64,980.47 | Q58: 0.37 | R58: 0.37 | T58: 3249.614626 | U58: 774 | V58: 1.45 | W58: 2,239.89 | X58: 2,116.74 | Y58: 2,116.74
B59: 24 | D59: 2026-10-28 | E59: 3 | F59: 2026-10-28 | G59: 30 | H59: 804 | I59: 64,980.47 | J59: 318.76 | K59: 518.16 | L59: 2,040.39 | M59: 372.31 | N59: 0 | O59: 3,249.61 | P59: 64,661.71 | Q59: 0.36 | R59: 0.36 | T59: 3249.614626 | U59: 804 | V59: 1.47 | W59: 2,207.82 | X59: 2,040.39 | Y59: 2,040.39
B60: 25 | D60: 2026-11-28 | E60: 6 | F60: 2026-11-28 | G60: 31 | H60: 835 | I60: 64,661.71 | J60: 245.28 | K60: 532.88 | L60: 2,099.14 | M60: 372.31 | N60: 0 | O60: 3,249.61 | P60: 64,416.43 | Q60: 0.34 | R60: 0.34 | T60: 3249.614626 | U60: 835 | V60: 1.49 | W60: 2,175.16 | X60: 2,099.14 | Y60: 2,099.14
B61: 26 | D61: 2026-12-28 | E61: 1 | F61: 2026-12-28 | G61: 30 | H61: 865 | I61: 64,416.43 | J61: 3,590.58 | K61: 513.67 | L61: 2,022.68 | M61: 372.31 | N61: 0 | O61: 6,499.23 | P61: 60,825.85 | Q61: 0.66 | R61: 0.33 | T61: 6499.229252 | U61: 865 | V61: 1.52 | W61: 4,288.02 | X61: 2,022.68 | Y61: 2,022.68
B62: 27 | D62: 2027-01-28 | E62: 4 | F62: 2027-01-28 | G62: 31 | H62: 896 | I62: 60,825.85 | J62: 401.42 | K62: 501.27 | L62: 1,974.62 | M62: 372.31 | N62: 0 | O62: 3,249.61 | P62: 60,424.44 | Q62: 0.32 | R62: 0.32 | T62: 3249.614626 | U62: 896 | V62: 1.54 | W62: 2,112.29 | X62: 1,974.62 | Y62: 1,974.62
B63: 28 | D63: 2027-02-28 | E63: 7 | F63: 2027-03-01 | G63: 32 | H63: 928 | I63: 60,424.44 | J63: 337.30 | K63: 514.09 | L63: 2,025.91 | M63: 372.31 | N63: 0 | O63: 3,249.61 | P63: 60,087.13 | Q63: 0.30 | R63: 0.30 | T63: 3249.614626 | U63: 928 | V63: 1.56 | W63: 2,080.04 | X63: 2,025.91 | Y63: 2,025.91
B64: 29 | D64: 2027-03-28 | E64: 7 | F64: 2027-03-29 | G64: 28 | H64: 956 | I64: 60,087.13 | J64: 671.09 | K64: 447.08 | L64: 1,759.13 | M64: 372.31 | N64: 0 | O64: 3,249.61 | P64: 59,416.04 | Q64: 0.29 | R64: 0.29 | T64: 3249.614626 | U64: 956 | V64: 1.58 | W64: 2,052.23 | X64: 1,759.13 | Y64: 1,759.13
B65: 30 | D65: 2027-04-28 | E65: 3 | F65: 2027-04-28 | G65: 30 | H65: 986 | I65: 59,416.04 | J65: 537.85 | K65: 473.79 | L65: 1,865.66 | M65: 372.31 | N65: 0 | O65: 3,249.61 | P65: 58,878.19 | Q65: 0.28 | R65: 0.28 | T65: 3249.614626 | U65: 986 | V65: 1.61 | W65: 2,022.84 | X65: 1,865.66 | Y65: 1,865.66
B66: 31 | D66: 2027-05-28 | E66: 5 | F66: 2027-05-28 | G66: 30 | H66: 1016 | I66: 58,878.19 | J66: 559.03 | K66: 469.50 | L66: 1,848.78 | M66: 372.31 | N66: 0 | O66: 3,249.61 | P66: 58,319.16 | Q66: 0.27 | R66: 0.27 | T66: 3249.614626 | U66: 1016 | V66: 1.63 | W66: 1,993.88 | X66: 1,848.78 | Y66: 1,848.78
B67: 32 | D67: 2027-06-28 | E67: 1 | F67: 2027-06-28 | G67: 31 | H67: 1047 | I67: 58,319.16 | J67: 503.45 | K67: 480.61 | L67: 1,893.24 | M67: 372.31 | N67: 0 | O67: 3,249.61 | P67: 57,815.71 | Q67: 0.26 | R67: 0.26 | T67: 3249.614626 | U67: 1047 | V67: 1.65 | W67: 1,964.38 | X67: 1,893.24 | Y67: 1,893.24
B68: 33 | D68: 2027-07-28 | E68: 3 | F68: 2027-07-28 | G68: 30 | H68: 1077 | I68: 57,815.71 | J68: 3,850.48 | K68: 461.03 | L68: 1,815.41 | M68: 372.31 | N68: 0 | O68: 6,499.23 | P68: 53,965.24 | Q68: 0.50 | R68: 0.25 | T68: 6499.229252 | U68: 1077 | V68: 1.68 | W68: 3,872.51 | X68: 1,815.41 | Y68: 1,815.41
B69: 34 | D69: 2027-08-28 | E69: 6 | F69: 2027-08-28 | G69: 31 | H69: 1108 | I69: 53,965.24 | J69: 680.68 | K69: 444.73 | L69: 1,751.90 | M69: 372.31 | N69: 0 | O69: 3,249.61 | P69: 53,284.56 | Q69: 0.24 | R69: 0.24 | T69: 3249.614626 | U69: 1108 | V69: 1.70 | W69: 1,907.61 | X69: 1,751.90 | Y69: 1,751.90
B70: 35 | D70: 2027-09-28 | E70: 2 | F70: 2027-09-28 | G70: 31 | H70: 1139 | I70: 53,284.56 | J70: 708.38 | K70: 439.12 | L70: 1,729.80 | M70: 372.31 | N70: 0 | O70: 3,249.61 | P70: 52,576.18 | Q70: 0.23 | R70: 0.23 | T70: 3249.614626 | U70: 1139 | V70: 1.73 | W70: 1,879.39 | X70: 1,729.80 | Y70: 1,729.80
B71: 36 | D71: 2027-10-28 | E71: 4 | F71: 2027-10-28 | G71: 30 | H71: 1169 | I71: 52,576.18 | J71: 807.16 | K71: 419.25 | L71: 1,650.89 | M71: 372.31 | N71: 0 | O71: 3,249.61 | P71: 51,769.01 | Q71: 0.22 | R71: 0.22 | T71: 3249.614626 | U71: 1169 | V71: 1.75 | W71: 1,852.48 | X71: 1,650.89 | Y71: 1,650.89
B72: 37 | D72: 2027-11-28 | E72: 7 | F72: 2027-11-29 | G72: 32 | H72: 1201 | I72: 51,769.01 | J72: 701.14 | K72: 440.45 | L72: 1,735.71 | M72: 372.31 | N72: 0 | O72: 3,249.61 | P72: 51,067.87 | Q72: 0.21 | R72: 0.21 | T72: 3249.614626 | U72: 1201 | V72: 1.78 | W72: 1,824.20 | X72: 1,735.71 | Y72: 1,735.71
B73: 38 | D73: 2027-12-28 | E73: 2 | F73: 2027-12-28 | G73: 29 | H73: 1230 | I73: 51,067.87 | J73: 4,184.05 | K73: 393.60 | L73: 1,549.28 | M73: 372.31 | N73: 0 | O73: 6,499.23 | P73: 46,883.83 | Q73: 0.41 | R73: 0.21 | T73: 6499.229252 | U73: 1230 | V73: 1.81 | W73: 3,597.88 | X73: 1,549.28 | Y73: 1,549.28
B74: 39 | D74: 2028-01-28 | E74: 5 | F74: 2028-01-28 | G74: 31 | H74: 1261 | I74: 46,883.83 | J74: 968.92 | K74: 386.37 | L74: 1,522.01 | M74: 372.31 | N74: 0 | O74: 3,249.61 | P74: 45,914.90 | Q74: 0.20 | R74: 0.20 | T74: 3249.614626 | U74: 1261 | V74: 1.83 | W74: 1,772.33 | X74: 1,522.01 | Y74: 1,522.01
B75: 40 | D75: 2028-02-28 | E75: 1 | F75: 2028-02-28 | G75: 31 | H75: 1292 | I75: 45,914.90 | J75: 1,008.36 | K75: 378.39 | L75: 1,490.56 | M75: 372.31 | N75: 0 | O75: 3,249.61 | P75: 44,906.54 | Q75: 0.19 | R75: 0.19 | T75: 3249.614626 | U75: 1292 | V75: 1.86 | W75: 1,746.11 | X75: 1,490.56 | Y75: 1,490.56
B76: 41 | D76: 2028-03-28 | E76: 2 | F76: 2028-03-28 | G76: 29 | H76: 1321 | I76: 44,906.54 | J76: 1,168.84 | K76: 346.11 | L76: 1,362.36 | M76: 372.31 | N76: 0 | O76: 3,249.61 | P76: 43,737.70 | Q76: 0.18 | R76: 0.18 | T76: 3249.614626 | U76: 1321 | V76: 1.89 | W76: 1,721.94 | X76: 1,362.36 | Y76: 1,362.36
B77: 42 | D77: 2028-04-28 | E77: 5 | F77: 2028-04-28 | G77: 31 | H77: 1352 | I77: 43,737.70 | J77: 1,096.98 | K77: 360.44 | L77: 1,419.88 | M77: 372.31 | N77: 0 | O77: 3,249.61 | P77: 42,640.72 | Q77: 0.18 | R77: 0.18 | T77: 3249.614626 | U77: 1352 | V77: 1.92 | W77: 1,696.46 | X77: 1,419.88 | Y77: 1,419.88
B78: 43 | D78: 2028-05-28 | E78: 7 | F78: 2028-05-29 | G78: 31 | H78: 1383 | I78: 42,640.72 | J78: 1,141.64 | K78: 351.40 | L78: 1,384.27 | M78: 372.31 | N78: 0 | O78: 3,249.61 | P78: 41,499.08 | Q78: 0.17 | R78: 0.17 | T78: 3249.614626 | U78: 1383 | V78: 1.94 | W78: 1,671.37 | X78: 1,384.27 | Y78: 1,384.27
B79: 44 | D79: 2028-06-28 | E79: 3 | F79: 2028-06-28 | G79: 30 | H79: 1413 | I79: 41,499.08 | J79: 1,243.31 | K79: 330.92 | L79: 1,303.07 | M79: 372.31 | N79: 0 | O79: 3,249.61 | P79: 40,255.77 | Q79: 0.16 | R79: 0.16 | T79: 3249.614626 | U79: 1413 | V79: 1.97 | W79: 1,647.43 | X79: 1,303.07 | Y79: 1,303.07
B80: 45 | D80: 2028-07-28 | E80: 5 | F80: 2028-07-28 | G80: 30 | H80: 1443 | I80: 40,255.77 | J80: 4,541.88 | K80: 321.01 | L80: 1,264.03 | M80: 372.31 | N80: 0 | O80: 6,499.23 | P80: 35,713.89 | Q80: 0.31 | R80: 0.16 | T80: 6499.229252 | U80: 1443 | V80: 2.00 | W80: 3,247.69 | X80: 1,264.03 | Y80: 1,264.03
B81: 46 | D81: 2028-08-28 | E81: 1 | F81: 2028-08-28 | G81: 31 | H81: 1474 | I81: 35,713.89 | J81: 1,423.59 | K81: 294.32 | L81: 1,159.40 | M81: 372.31 | N81: 0 | O81: 3,249.61 | P81: 34,290.30 | Q81: 0.15 | R81: 0.15 | T81: 3249.614626 | U81: 1474 | V81: 2.03 | W81: 1,599.82 | X81: 1,159.40 | Y81: 1,159.40
B82: 47 | D82: 2028-09-28 | E82: 4 | F82: 2028-09-28 | G82: 31 | H82: 1505 | I82: 34,290.30 | J82: 1,481.54 | K82: 282.59 | L82: 1,113.18 | M82: 372.31 | N82: 0 | O82: 3,249.61 | P82: 32,808.76 | Q82: 0.14 | R82: 0.14 | T82: 3249.614626 | U82: 1505 | V82: 2.06 | W82: 1,576.16 | X82: 1,113.18 | Y82: 1,113.18
B83: 48 | D83: 2028-10-28 | E83: 6 | F83: 2028-10-28 | G83: 30 | H83: 1535 | I83: 32,808.76 | J83: 1,585.49 | K83: 261.62 | L83: 1,030.20 | M83: 372.31 | N83: 0 | O83: 3,249.61 | P83: 31,223.27 | Q83: 0.14 | R83: 0.14 | T83: 3249.614626 | U83: 1535 | V83: 2.09 | W83: 1,553.59 | X83: 1,030.20 | Y83: 1,030.20
B84: 49 | D84: 2028-11-28 | E84: 2 | F84: 2028-11-28 | G84: 31 | H84: 1566 | I84: 31,223.27 | J84: 1,606.38 | K84: 257.31 | L84: 1,013.62 | M84: 372.31 | N84: 0 | O84: 3,249.61 | P84: 29,616.90 | Q84: 0.13 | R84: 0.13 | T84: 3249.614626 | U84: 1566 | V84: 2.12 | W84: 1,530.60 | X84: 1,013.62 | Y84: 1,013.62
B85: 50 | D85: 2028-12-28 | E85: 4 | F85: 2028-12-28 | G85: 30 | H85: 1596 | I85: 29,616.90 | J85: 4,960.78 | K85: 236.17 | L85: 929.97 | M85: 372.31 | N85: 0 | O85: 6,499.23 | P85: 24,656.12 | Q85: 0.26 | R85: 0.13 | T85: 6499.229252 | U85: 1596 | V85: 2.15 | W85: 3,017.37 | X85: 929.97 | Y85: 929.97
B86: 51 | D86: 2029-01-28 | E86: 7 | F86: 2029-01-29 | G86: 32 | H86: 1628 | I86: 24,656.12 | J86: 1,840.86 | K86: 209.77 | L86: 826.67 | M86: 372.31 | N86: 0 | O86: 3,249.61 | P86: 22,815.26 | Q86: 0.12 | R86: 0.12 | T86: 3249.614626 | U86: 1628 | V86: 2.19 | W86: 1,485.65 | X86: 826.67 | Y86: 826.67
B87: 52 | D87: 2029-02-28 | E87: 3 | F87: 2029-02-28 | G87: 30 | H87: 1658 | I87: 22,815.26 | J87: 1,978.97 | K87: 181.93 | L87: 716.40 | M87: 372.31 | N87: 0 | O87: 3,249.61 | P87: 20,836.28 | Q87: 0.12 | R87: 0.12 | T87: 3249.614626 | U87: 1658 | V87: 2.22 | W87: 1,464.38 | X87: 716.40 | Y87: 716.40
B88: 53 | D88: 2029-03-28 | E88: 3 | F88: 2029-03-28 | G88: 28 | H88: 1686 | I88: 20,836.28 | J88: 2,112.26 | K88: 155.03 | L88: 610.01 | M88: 372.31 | N88: 0 | O88: 3,249.61 | P88: 18,724.02 | Q88: 0.11 | R88: 0.11 | T88: 3249.614626 | U88: 1686 | V88: 2.25 | W88: 1,444.80 | X88: 610.01 | Y88: 610.01
B89: 54 | D89: 2029-04-28 | E89: 6 | F89: 2029-04-28 | G89: 31 | H89: 1717 | I89: 18,724.02 | J89: 2,115.15 | K89: 154.31 | L89: 607.85 | M89: 372.31 | N89: 0 | O89: 3,249.61 | P89: 16,608.87 | Q89: 0.11 | R89: 0.11 | T89: 3249.614626 | U89: 1717 | V89: 2.28 | W89: 1,423.43 | X89: 607.85 | Y89: 607.85
B90: 55 | D90: 2029-05-28 | E90: 1 | F90: 2029-05-28 | G90: 30 | H90: 1747 | I90: 16,608.87 | J90: 2,223.35 | K90: 132.44 | L90: 521.52 | M90: 372.31 | N90: 0 | O90: 3,249.61 | P90: 14,385.52 | Q90: 0.11 | R90: 0.11 | T90: 3249.614626 | U90: 1747 | V90: 2.32 | W90: 1,403.04 | X90: 521.52 | Y90: 521.52
B91: 56 | D91: 2029-06-28 | E91: 4 | F91: 2029-06-28 | G91: 31 | H91: 1778 | I91: 14,385.52 | J91: 2,291.75 | K91: 118.55 | L91: 467.00 | M91: 372.31 | N91: 0 | O91: 3,249.61 | P91: 12,093.77 | Q91: 0.10 | R91: 0.10 | T91: 3249.614626 | U91: 1778 | V91: 2.35 | W91: 1,382.29 | X91: 467.00 | Y91: 467.00
B92: 57 | D92: 2029-07-28 | E92: 6 | F92: 2029-07-28 | G92: 30 | H92: 1808 | I92: 12,093.77 | J92: 5,650.74 | K92: 96.44 | L92: 379.74 | M92: 372.31 | N92: 0 | O92: 6,499.23 | P92: 6,443.03 | Q92: 0.20 | R92: 0.10 | T92: 6499.229252 | U92: 1808 | V92: 2.39 | W92: 2,724.99 | X92: 379.74 | Y92: 379.74
B93: 58 | D93: 2029-08-28 | E93: 2 | F93: 2029-08-28 | G93: 31 | H93: 1839 | I93: 6,443.03 | J93: 2,615.04 | K93: 53.10 | L93: 209.16 | M93: 372.31 | N93: 0 | O93: 3,249.61 | P93: 3,827.99 | Q93: 0.09 | R93: 0.09 | T93: 3249.614626 | U93: 1839 | V93: 2.42 | W93: 1,342.34 | X93: 209.16 | Y93: 209.16
B94: 59 | D94: 2029-09-28 | E94: 5 | F94: 2029-09-28 | G94: 31 | H94: 1870 | I94: 3,827.99 | J94: 2,721.49 | K94: 31.55 | L94: 124.27 | M94: 372.31 | N94: 0 | O94: 3,249.61 | P94: 1,106.50 | Q94: 0.09 | R94: 0.09 | T94: 3249.614626 | U94: 1870 | V94: 2.46 | W94: 1,322.48 | X94: 124.27 | Y94: 124.27
B95: 60 | D95: 2029-10-28 | E95: 7 | F95: 2029-10-29 | G95: 31 | H95: 1901 | I95: 1,106.50 | J95: 1,106.50 | K95: 9.12 | L95: 35.92 | M95: 372.31 | N95: 0 | O95: 1,523.85 | P95: 0 | Q95: 0.09 | R95: 0.09 | T95: 1523.846975 | U95: 1901 | V95: 2.49 | W95: 610.98 | X95: 35.92 | Y95: 35.92
B96: 61 | X96: 0 | Y96: 0
B97: 62 | X97: 0 | Y97: 0
B98: 63 | X98: 0 | Y98: 0
B99: 64 | X99: 0 | Y99: 0
B100: 65 | E100: =IF(B100<=$D$18,WEEKDAY(D100,2),"") ->  | J100: =IF(B100>D$18,"",O100-N100-M100-L100-K100) ->  | K100: =IF(B100>D$18,"",((1+D$23)^(G100/360)-1)*I100) ->  | L100: =IF(B100>D$18,"",((1+D$13)^(G100/30)-1)*I100) ->  | M100: =IF(B100>D$18,"",D$25*D$26) ->  | N100: =IF(B100>D$18,"",D$27) ->  | O100: =IF(B100>D$18,"",IF(B100=D$18,I100+K100+L100+M100+N100,IF(AND(D$21=2,MONTH(F100)=7),2*D$28,IF(AND(D$22=2,MONTH(F100)=12),2*D$28,D$28)))) ->  | P100: =IF(B100>D$18,"",I100-J100) ->  | Q100: =IFERROR(IF(AND(MONTH(F100)=7,D$21=2),2/(1+D$24)^(H100/360),IF(AND(MONTH(F100)=12,D$22=2),2/(1+D$24)^(H100/360),1/(1+D$24)^(H100/360))),"") ->  | R100: =IFERROR(1/(1+D$24)^(H100/360),"") ->  | U100: =H100 ->  | V100: =IFERROR((1+D$30)^(U100/360),"") ->  | W100: =IFERROR(ROUND(T100/V100,2),"") ->  | X100: 0 | Y100: 0
B101: 66 | D101: =IF(B101>$D$18,"",EDATE(D100,1)) ->  | F101: =IF(E101=7,D101+1,D101) ->  | G101: =IF(B101>D$18,"",F101-F100) ->  | H101: =IFERROR(G101+H100,"") ->  | I101: =IF(B101>D$18,"",P100) ->  | T101: =IFERROR(J101+K101+L101+M101+N101,"") ->  | X101: =IF(O101="",0,L101/((1+$I$9)^B101)) -> 0 | Y101: 0
B102: 67 | X102: 0 | Y102: =IF(O102="",0,L102/((1+$Q$28)^B102)) -> 0
B103: 68 | X103: 0 | Y103: 0
B104: 69 | X104: 0 | Y104: 0
B105: 70 | X105: 0 | Y105: 0
B106: 71 | X106: 0 | Y106: 0
B107: 72 | X107: 0 | Y107: 0
B108: 73 | X108: 0 | Y108: 0
B109: 74 | X109: 0 | Y109: 0
B110: 75 | X110: 0 | Y110: 0
B111: 76 | X111: 0 | Y111: 0
B112: 77 | X112: 0 | Y112: 0
B113: 78 | X113: 0 | Y113: 0
B114: 79 | X114: 0 | Y114: 0
B115: 80 | X115: 0 | Y115: 0
B116: 81 | X116: 0 | Y116: 0
B117: 82 | X117: 0 | Y117: 0
B118: 83 | X118: 0 | Y118: 0
B119: 84 | X119: 0 | Y119: 0
B120: 85 | X120: 0 | Y120: 0
B121: 86 | X121: 0 | Y121: 0
B122: 87 | X122: 0 | Y122: 0
B123: 88 | X123: 0 | Y123: 0
B124: 89 | X124: 0 | Y124: 0
B125: 90 | X125: 0 | Y125: 0
B126: 91 | X126: 0 | Y126: 0
B127: 92 | X127: 0 | Y127: 0
B128: 93 | X128: 0 | Y128: 0
B129: 94 | X129: 0 | Y129: 0
B130: 95 | X130: 0 | Y130: 0
B131: 96 | X131: 0 | Y131: 0
B132: 97 | X132: 0 | Y132: 0
B133: 98 | X133: 0 | Y133: 0
B134: 99 | X134: 0 | Y134: 0
B135: 100 | X135: 0 | Y135: 0
B136: 101 | X136: 0 | Y136: 0
B137: 102 | X137: 0 | Y137: 0
B138: 103 | X138: 0 | Y138: 0
B139: 104 | X139: 0 | Y139: 0
B140: 105 | X140: 0 | Y140: 0
B141: 106 | X141: 0 | Y141: 0
B142: 107 | X142: 0 | Y142: 0
B143: 108 | X143: 0 | Y143: 0
B144: 109 | X144: 0 | Y144: 0
B145: 110 | X145: 0 | Y145: 0
B146: 111 | X146: 0 | Y146: 0
B147: 112 | X147: 0 | Y147: 0
B148: 113 | X148: 0 | Y148: 0
B149: 114 | X149: 0 | Y149: 0
B150: 115 | X150: 0 | Y150: 0
B151: 116 | X151: 0 | Y151: 0
B152: 117 | X152: 0 | Y152: 0
B153: 118 | X153: 0 | Y153: 0
B154: 119 | X154: 0 | Y154: 0
B155: 120 | X155: 0 | Y155: 0
B156: 121 | X156: 0 | Y156: 0
B157: 122 | X157: 0 | Y157: 0
B158: 123 | X158: 0 | Y158: 0
B159: 124 | X159: 0 | Y159: 0
B160: 125 | X160: 0 | Y160: 0
B161: 126 | X161: 0 | Y161: 0
B162: 127 | X162: 0 | Y162: 0
B163: 128 | X163: 0 | Y163: 0
B164: 129 | E164: =IF(B164<=$D$18,WEEKDAY(D164,2),"") ->  | J164: =IF(B164>D$18,"",O164-N164-M164-L164-K164) ->  | K164: =IF(B164>D$18,"",((1+D$23)^(G164/360)-1)*I164) ->  | L164: =IF(B164>D$18,"",((1+D$13)^(G164/30)-1)*I164) ->  | M164: =IF(B164>D$18,"",D$25*D$26) ->  | N164: =IF(B164>D$18,"",D$27) ->  | O164: =IF(B164>D$18,"",IF(B164=D$18,I164+K164+L164+M164+N164,IF(AND(D$21=2,MONTH(F164)=7),2*D$28,IF(AND(D$22=2,MONTH(F164)=12),2*D$28,D$28)))) ->  | P164: =IF(B164>D$18,"",I164-J164) ->  | Q164: =IFERROR(IF(AND(MONTH(F164)=7,D$21=2),2/(1+D$24)^(H164/360),IF(AND(MONTH(F164)=12,D$22=2),2/(1+D$24)^(H164/360),1/(1+D$24)^(H164/360))),"") ->  | R164: =IFERROR(1/(1+D$24)^(H164/360),"") ->  | U164: =H164 ->  | V164: =IFERROR((1+D$30)^(U164/360),"") ->  | W164: =IFERROR(ROUND(T164/V164,2),"") ->  | X164: 0 | Y164: 0
B165: 130 | D165: =IF(B165>$D$18,"",EDATE(D164,1)) ->  | F165: =IF(E165=7,D165+1,D165) ->  | G165: =IF(B165>D$18,"",F165-F164) ->  | H165: =IFERROR(G165+H164,"") ->  | I165: =IF(B165>D$18,"",P164) ->  | T165: =IFERROR(J165+K165+L165+M165+N165,"") ->  | X165: =IF(O165="",0,L165/((1+$I$9)^B165)) -> 0 | Y165: 0
B166: 131 | X166: 0 | Y166: =IF(O166="",0,L166/((1+$Q$28)^B166)) -> 0
B167: 132 | X167: 0 | Y167: 0
B168: 133 | X168: 0 | Y168: 0
B169: 134 | X169: 0 | Y169: 0
B170: 135 | X170: 0 | Y170: 0
B171: 136 | X171: 0 | Y171: 0
B172: 137 | X172: 0 | Y172: 0
B173: 138 | X173: 0 | Y173: 0
B174: 139 | X174: 0 | Y174: 0
B175: 140 | X175: 0 | Y175: 0
B176: 141 | X176: 0 | Y176: 0
B177: 142 | X177: 0 | Y177: 0
B178: 143 | X178: 0 | Y178: 0
B179: 144 | X179: 0 | Y179: 0
B180: 145 | X180: 0 | Y180: 0
B181: 146 | X181: 0 | Y181: 0
B182: 147 | X182: 0 | Y182: 0
B183: 148 | X183: 0 | Y183: 0
B184: 149 | X184: 0 | Y184: 0
B185: 150 | X185: 0 | Y185: 0
B186: 151 | X186: 0 | Y186: 0
B187: 152 | X187: 0 | Y187: 0
B188: 153 | X188: 0 | Y188: 0
B189: 154 | X189: 0 | Y189: 0
B190: 155 | X190: 0 | Y190: 0
B191: 156 | X191: 0 | Y191: 0
B192: 157 | X192: 0 | Y192: 0
B193: 158 | X193: 0 | Y193: 0
B194: 159 | X194: 0 | Y194: 0
B195: 160 | X195: 0 | Y195: 0
B196: 161 | X196: 0 | Y196: 0
B197: 162 | X197: 0 | Y197: 0
B198: 163 | X198: 0 | Y198: 0
B199: 164 | X199: 0 | Y199: 0
B200: 165 | X200: 0 | Y200: 0
B201: 166 | X201: 0 | Y201: 0
B202: 167 | X202: 0 | Y202: 0
B203: 168 | X203: 0 | Y203: 0
B204: 169 | X204: 0 | Y204: 0
B205: 170 | X205: 0 | Y205: 0
B206: 171 | X206: 0 | Y206: 0
B207: 172 | X207: 0 | Y207: 0
B208: 173 | X208: 0 | Y208: 0
... 187 more rows

Sheet TarifarioBD (hidden)
A1: TARIFA | B1: PRODUCTO | C1: TIPO_SEGURO | D1: Valor | E1: Columna1 | F1: Columna2 | J1: TARIFA | K1: PRODUCTO | L1: TIPO_SEGURO | N1: TIPO_SEGURO | O1: Valor | Q1: Cuota Julio | R1: Cuota Diciembre
A2: TARIFA TITULAR | B2: Préstamos Vehiculares (Clientes) | C2: Seguro de Vida | D2: 3.1400% | E2: =+CONCATENATE(TarifarioPrincipal[[#This Row],[TARIFA]],TarifarioPrincipal[[#This Row],[PRODUCTO]],TarifarioPrincipal[[#This Row],[TIPO_SEGURO]]) -> TARIFA TITULARPréstamos Vehiculares (Clientes)Seguro de Vida | F2: =+TarifarioPrincipal[[#This Row],[Valor]] -> 3.1400% | J2: TARIFA TITULAR | K2: Préstamos Vehiculares (Clientes) | L2: Seguro de Vida | N2: Seguro Endosado | O2: 0.0000% | Q2: 1 | R2: 1
A3: TARIFA TITULAR | B3: Préstamos Vehiculares (Empleados) | C3: Seguro de Vida | D3: 1.5300% | E3: =+CONCATENATE(TarifarioPrincipal[[#This Row],[TARIFA]],TarifarioPrincipal[[#This Row],[PRODUCTO]],TarifarioPrincipal[[#This Row],[TIPO_SEGURO]]) -> TARIFA TITULARPréstamos Vehiculares (Empleados)Seguro de Vida | F3: =+TarifarioPrincipal[[#This Row],[Valor]] -> 1.5300% | J3: TARIFA TITULAR + CONYUGE | K3: Préstamos Vehiculares (Empleados) | L3: Seguro de Desgravamen | N3: PC - Auto y 4x4 sin GPS Lima | O3: 0.3544% | Q3: 2 | R3: 2
A4: TARIFA TITULAR | B4: Préstamos Vehiculares (Clientes) | C4: Seguro de Desgravamen | D4: 0.1045% | E4: =+CONCATENATE(TarifarioPrincipal[[#This Row],[TARIFA]],TarifarioPrincipal[[#This Row],[PRODUCTO]],TarifarioPrincipal[[#This Row],[TIPO_SEGURO]]) -> TARIFA TITULARPréstamos Vehiculares (Clientes)Seguro de Desgravamen | F4: =+TarifarioPrincipal[[#This Row],[Valor]] -> 0.1045% | L4: Seguro de Desgravamen con Devolución | N4: PC - Auto y 4x4 sin GPS Provincia | O4: 0.2735%
A5: TARIFA TITULAR | B5: Préstamos Vehiculares (Empleados) | C5: Seguro de Desgravamen | D5: 0.0510% | E5: =+CONCATENATE(TarifarioPrincipal[[#This Row],[TARIFA]],TarifarioPrincipal[[#This Row],[PRODUCTO]],TarifarioPrincipal[[#This Row],[TIPO_SEGURO]]) -> TARIFA TITULARPréstamos Vehiculares (Empleados)Seguro de Desgravamen | F5: =+TarifarioPrincipal[[#This Row],[Valor]] -> 0.0510% | N5: PC - Auto/4x4 con GPS Lima/Valor >50k | O5: 0.4001%
A6: TARIFA TITULAR | B6: Préstamos Vehiculares (Clientes) | C6: Seguro de Desgravamen con Devolución | D6: 0.1358% | E6: =+CONCATENATE(TarifarioPrincipal[[#This Row],[TARIFA]],TarifarioPrincipal[[#This Row],[PRODUCTO]],TarifarioPrincipal[[#This Row],[TIPO_SEGURO]]) -> TARIFA TITULARPréstamos Vehiculares (Clientes)Seguro de Desgravamen con Devolución | F6: =+TarifarioPrincipal[[#This Row],[Valor]] -> 0.1358% | N6: PC - Auto/4x4 con GPS Prov/Valor >50k | O6: 0.3444%
A7: TARIFA TITULAR | B7: Préstamos Vehiculares (Empleados) | C7: Seguro de Desgravamen con Devolución | D7: 0.1020% | E7: =+CONCATENATE(TarifarioPrincipal[[#This Row],[TARIFA]],TarifarioPrincipal[[#This Row],[PRODUCTO]],TarifarioPrincipal[[#This Row],[TIPO_SEGURO]]) -> TARIFA TITULARPréstamos Vehiculares (Empleados)Seguro de Desgravamen con Devolución | F7: =+TarifarioPrincipal[[#This Row],[Valor]] -> 0.1020% | N7: PC - Auto y 4x4 Med. Riesgo Lima con GPS | O7: 0.5064%
A8: TARIFA TITULAR + CONYUGE | B8: Préstamos Vehiculares (Clientes) | C8: Seguro de Vida | D8: 6.2800% | E8: =+CONCATENATE(TarifarioPrincipal[[#This Row],[TARIFA]],TarifarioPrincipal[[#This Row],[PRODUCTO]],TarifarioPrincipal[[#This Row],[TIPO_SEGURO]]) -> TARIFA TITULAR + CONYUGEPréstamos Vehiculares (Clientes)Seguro de Vida | F8: =+TarifarioPrincipal[[#This Row],[Valor]] -> 6.2800% | N8: PC - Auto y 4x4 Med. Riesgo Provincia con GPS | O8: 0.3950%
A9: TARIFA TITULAR + CONYUGE | B9: Préstamos Vehiculares (Empleados) | C9: Seguro de Vida | D9: 3.0600% | E9: =+CONCATENATE(TarifarioPrincipal[[#This Row],[TARIFA]],TarifarioPrincipal[[#This Row],[PRODUCTO]],TarifarioPrincipal[[#This Row],[TIPO_SEGURO]]) -> TARIFA TITULAR + CONYUGEPréstamos Vehiculares (Empleados)Seguro de Vida | F9: =+TarifarioPrincipal[[#This Row],[Valor]] -> 3.0600% | N9: PC - Vehic. Chinos (Autos y Rurales) Lima | O9: 0.3747%
A10: TARIFA TITULAR + CONYUGE | B10: Préstamos Vehiculares (Clientes) | C10: Seguro de Desgravamen | D10: 0.2090% | E10: =+CONCATENATE(TarifarioPrincipal[[#This Row],[TARIFA]],TarifarioPrincipal[[#This Row],[PRODUCTO]],TarifarioPrincipal[[#This Row],[TIPO_SEGURO]]) -> TARIFA TITULAR + CONYUGEPréstamos Vehiculares (Clientes)Seguro de Desgravamen | F10: =+TarifarioPrincipal[[#This Row],[Valor]] -> 0.2090% | N10: PC - Vehic. Chinos (Autos y Rurales) Provincia | O10: 0.3747%
A11: TARIFA TITULAR + CONYUGE | B11: Préstamos Vehiculares (Empleados) | C11: Seguro de Desgravamen | D11: 0.1020% | E11: =+CONCATENATE(TarifarioPrincipal[[#This Row],[TARIFA]],TarifarioPrincipal[[#This Row],[PRODUCTO]],TarifarioPrincipal[[#This Row],[TIPO_SEGURO]]) -> TARIFA TITULAR + CONYUGEPréstamos Vehiculares (Empleados)Seguro de Desgravamen | F11: =+TarifarioPrincipal[[#This Row],[Valor]] -> 0.1020% | N11: PC - Camionetas Pick up/sin GPS/ Lima | O11: 0.4608%
A12: TARIFA TITULAR + CONYUGE | B12: Préstamos Vehiculares (Clientes) | C12: Seguro de Desgravamen con Devolución | D12: 0.2716% | E12: =+CONCATENATE(TarifarioPrincipal[[#This Row],[TARIFA]],TarifarioPrincipal[[#This Row],[PRODUCTO]],TarifarioPrincipal[[#This Row],[TIPO_SEGURO]]) -> TARIFA TITULAR + CONYUGEPréstamos Vehiculares (Clientes)Seguro de Desgravamen con Devolución | F12: =+TarifarioPrincipal[[#This Row],[Valor]] -> 0.2716% | N12: PC - Camionetas Pick up/sin GPS/ Provincia | O12: 0.4608%
A13: TARIFA TITULAR + CONYUGE | B13: Préstamos Vehiculares (Empleados) | C13: Seguro de Desgravamen con Devolución | D13: 0.2040% | E13: =+CONCATENATE(TarifarioPrincipal[[#This Row],[TARIFA]],TarifarioPrincipal[[#This Row],[PRODUCTO]],TarifarioPrincipal[[#This Row],[TIPO_SEGURO]]) -> TARIFA TITULAR + CONYUGEPréstamos Vehiculares (Empleados)Seguro de Desgravamen con Devolución | F13: =+TarifarioPrincipal[[#This Row],[Valor]] -> 0.2040% | N13: PC - Camionetas Pick up/con GPS/ Lima | O13: 0.5317%
N14: Camionetas Pick up/con GPS/ Provincia | O14: 0.5317%

Sheet CostoCapBD (hidden)
A1: TARIFA | B1: CostoCapital
A2: TARIFA TITULAR | B2: 0.2871%
A3: TARIFA TITULAR + CONYUGE | B3: 0.2871%
